Workbook

Sheet Summary
D2: Summary of the Tier 1 Sugarcane-derived Ethanol Pathway Release Date: August 13, 2018 (corrected)
C3: Applicant: | D3: =" " &Calculator!C21 ->  | G3: ="Location: " &Calculator!F21 -> Location:
C4: Description: | D4: Ethanol produced from Sugarcane Juice and Molasses, and exported to California by Ocean Tanker. | G4: ="Application Number: " &Calculator!C23 -> Application Number:
C6: Feedstock Production Electricity Mix | E6: =Calculator!I23 -> 29-Brazilian Mix | G6: Fuel Production Electricity Mix | H6: =Calculator!I23 -> 29-Brazilian Mix
C7: Feedstock Production | G7: Fuel Production | J7: Carbon Intensity (gCO2e/MJ) | K7: Conservative Margin of Safety (gCO2e/MJ) | L7: Total Carbon Intensity (gCO2e/MJ) | M7: Correspondent Volume (gallons)
C8: Feedstock Production | D8: Column2 | E8: Column1 | G8: Fuel Production | H8: Column1
C9: Amount of Sugarcane Procured, metric tonnes | G9: Total Undenatured Ethanol Volume, gallons | H9: =H10+H11 -> 0 | J9: =H15 -> 0.0 | K9: 0 | L9: =J9+K9 -> 0 | M9: =H14 -> 0
D10: Propria and Terceiros (in Portuguese) | E10: =Calculator!G$59 -> 0 | G10: Undenatured Ethanol from Cane Juice, dry gallons | H10: =Calculator!G$86 -> 0
C11: Ethanol Yield, gal/metric tonne sugarcane | E11: =IFERROR((Calculator!F$86*Calculator!F$84+Calculator!G$86*Calculator!G$84)/(Calculator!F$86+Calculator!G$86),"0") -> 0 | G11: Undenatured Ethanol from Molasses, dry gallons | H11: =Calculator!F$86 -> 0
C13: Feedstock Transport | G13: Total Denatured Ethanol Volume, gallons
D14: From Field to Ethanol Plant | E14: MDD Truck | G14: Anhydrous Denatured Ethanol Volume, dry gal | H14: =Calculator!$S$59*(1-Calculator!$R$59)*264.1596/(1-'EF Tables'!$D$113) -> 0
D15: Shares | E15: 1 | G15: Total Well-to Tank CI, gCO2e/MJ | H15: =Calculator!G17 -> 0.0
D16: Miles | E16: 2
D17: From Field to Ethanol Plant | E17: HDD Truck | G17: Energy Consumption
D18: Shares | E18: 1 | G18: Residual Oil (Btu/gal) | H18: 300
D19: Miles | E19: =IFERROR((Calculator!D59*Calculator!C59+Calculator!E59*Calculator!F59)/(Calculator!C59+Calculator!E59)/1.609,"0") -> 0 | G19: Biomass (Btu/gal) | H19: =IFERROR(E10*0.28*0.5*13648337/H9,"0") -> 0
G20: Electricity, (kWh/gal) | H20: =IFERROR(Calculator!M59/(Calculator!X59*64.1593),"0") -> 0
C21: Co-Product Credit, Cogenerated Electricity Exports
D22: Net Cogenerated Surplus Electricity Exported (kWh/yr) | E22: =IF(Calculator!I21="Yes",(Calculator!N59-Calculator!M59),0) -> 0 | G22: Chemical Usage
D23: Total Annual Ethanol Produced (gal) | E23: =Calculator!G94 -> 0 | G23: Lime (grams/tonne cane), standard value | H23: 880
D24: Co-Product Credit Before Allocation (kWh/gal) | E24: =Calculator!L95 -> 0.0
G25: Fuel Transport
C26: Mechanized Harvesting Level | G26: By HD Truck from Ethanol Plant to Port, miles | H26: =Calculator!C27/1.609 -> 0
D27: Fraction Sugarcane Harvested Mechanically | E27: =Calculator!K$23 ->  | G27: By Ocean Transport to California Port, miles | H27: =Calculator!E27/1.609 -> 0
D28: Burn Area Evaluation Method | E28: =Calculator!K21 -> 0 | G28: Route | H28: =Calculator!E26 -> 0
C31: Filter Cake Transport | D31: Miles | E31: =Calculator!H59/1.609 -> 0
C45: Via Panama Canal
C46: Via Panama Canal
C47: Via Cape Horn
C48: Via Strait of Magellan

Sheet Calculator
I2: Yellow Cells require User Input
I3: Light Blue Cells show CI results
I4: Green Cells show the calculation button
I5: Gray Cells are Intermediate or Calculated Values
B8: Tier 1 Simplified CI Calculator for Sugarcane-derived Ethanol
B12: Pathway Summary and Calculated CI (gCO2e/MJ)
B13: Pathway Summary: | C13: Sugarcane-based Ethanol produced in Brazil; transported to California for use as a transportation fuel.
B14: Sugarcane Molasses-based Ethanol CI | D14: =IFERROR(N$148,"0.0") -> 0.00 | E14: Sugarcane Juice-based Ethanol CI | G14: =IFERROR(N$137,"0.00") -> 0.00
B15: Ethanol Volume (Molasses Feedstock), gal | D15: =F$86 -> 0 | E15: Ethanol Volume (Sugarcane Juice Feedstock), gal | G15: =G$86 -> 0
B16: Ethanol Yield (Molasses Feedstock), gal/tonne sugarcane | D16: =F$84 -> 0 | E16: Ethanol Yield (Juice Feedstock), gal/tonne sugarcane | G16: =IF(O$59=100%,0,G$84) -> 0
B17: Composite CI (gCO2e/MJ): | G17: =IFERROR((D14*D15+G14*G15)/(D15+G15),"0.0") -> 0.0
B20: Section 1: Applicant & Mill Specific Information
B21: 1.1 Company Name | E21: 1.4 Mill Location, including State/Country | H21: 1.7 Credit for Export of Net Surplus Cogenerated Electricity | J21: 1.10 Choose Applicable Burn Area Evaluation for Cane Farms, then Click "SELECT" button
B22: 1.2 Company or Facility ID | E22: 1.5 Harvest Cycle | H22: 1.8 Electric Transmission and Distribution Loss | I22: 0.081 | J22: 1.11 Reference Year for Burn Area Evaluation | K22: 2017
B23: 1.3 Application Number | E23: 1.6 Provisional Pathway Application? | H23: 1.9 Regional Electric Mix (Feedstock/Fuel) | I23: 29-Brazilian Mix | J23: 1.12 Applicable Mechanized Harvesting Credit (2, 7). | K23: =IF(K21="","",IF($K$21="Standard for Sao Paulo State",80%,65%)) -> 
B25: Section 2: Finished Fuel Transport Information
B26: 2.1 Anhydrous Ethanol Volume Transported by Truck (dry gal) | C26: =IF(S$59>0,$S$59*(1-$R$59)*264.1593,"") ->  | D26: 2.3 Anhydrous Ethanol Ocean Transport Route to California | F26: 2.5 Ethanol Transport Distance by Truck from California Port to Terminal (miles) | G26: =40 -> 40
B27: 2.2 Anhydrous Ethanol Transport Distance (km) by Truck to Port | D27: 2.4 Anhydrous Ethanol Transport Distance by Ocean Tanker to California (km) | F27: 2.6 Ethanol Transport Distance by Truck from California Terminal to Refueling Station (miles) | G27: 50
J28: Via Panama Canal
J29: Via Strait of Magellan
J30: Via Cape Horn
B32: Section 3: Monthly Feedstock, Fuel, and Co-Product Production Data | M32: Section 3: Monthly Feedstock, Fuel, and Co-Product Production Data
B33: 3.1 Reporting Month (MM/YYYY) | C33: 3.2 Cane Sourced from Applicant-owned Farms (Propria Farms) | D33: 3.3 Transport Distance of Cane Sourced from Applicant-Owned Farms (weighted average) | E33: 3.4 Cane Purchased from Partnership Farms (Terceiros Farms) | F33: 3.5 Transport Distance of Cane Sourced from Partnership Farms (weighted average distance) | G33: 3.6 Total Sugarcane Procured (Calculated) | H33: 3.7 Filter Cake Transport & Distribution Distance (1) | I33: 3.8 Amount of Externally Acquired or Purchased Bagasse | J33: 3.9 Amount of Electricity Generated from Externally Acquired or Purchased Bagasse (9) | K33: 3.10 Amount of Externally Acquired or Purchased Molasses | L33: 3.11 Amount of Ethanol Produced from Externally Acquired or Purchased Molasses | M33: 3.12 Amount of Purchased Electricity from the Grid | N33: 3.13 Surplus Electricity Cogenerated and Exported | O33: 3.14 Juice Allocated to Sugar Production (weighted average) (3) | P33: 3.15 Fraction Sucrose Entering Sugar Production (monthly weighted average) (4) | Q33: 3.16 Anhydrous Ethanol Production (Reported at 20 C / 68 F) (10) | R33: 3.17 Moisture Content (Anhydrous Ethanol) | S33: 3.18 Adjusted Anhydrous Ethanol Production (5, 10) | T33: 3.19 Hydrous Ethanol Production (Reported at 20 C / 68 F) (10) | U33: 3.20 Moisture Content (Hydrous Ethanol) | V33: 3.21 Adjusted Hydrous Ethanol Production (5, 10)) | W33: 3.22 Amount of Finished/Table Sugar Produced | X33: 3.23 Total Ethanol Production (Reported at 20 C / 68 F) (10)
B34: Production Data | C34: Metric Tons | D34: Km | E34: Metric Tons | F34: Km | G34: Metric Tons | H34: Km | I34: Metric Tons | J34: kWh | K34: Metric Tons | L34: m3 | M34: kWh | N34: kWh | O34: % | P34: "0.000" | Q34: m3 | R34: % | S34: wet m3 | T34: m3 | U34: % | V34: wet m3 | W34: Metric Tons | X34: (dry m3)
G35: =IFERROR(IF((C35+E35)>0,(C35+E35),"0"),"") -> 0 | H35: =IFERROR(((C35*D35+E35*F35)/G35)+2/AN$59,"0") -> 0 | J35: =IF((I35*(Fuel_Specs!$C$48-$D$215)*Fuel_Specs!$C$50*Fuel_Specs!$C$51*Fuel_Specs!$C$52/kWh2Btu)>0,(I35*(Fuel_Specs!$C$48-$D$215)*Fuel_Specs!$C$50*Fuel_Specs!$C$51*Fuel_Specs!$C$52/kWh2Btu),0) -> 0 | S35: =IFERROR(IF((Q35-L35*$Q$60)>0,(Q35-L35*$Q$60),0),"0") -> 0 | V35: =IFERROR(IF((T35-L35*$T$60)>0,(T35-L35*$T$60),0),"0") -> 0 | X35: =IFERROR(S35*(1-R35)+V35*(1-U35),"0") -> 0
G36: =IFERROR(IF((C36+E36)>0,(C36+E36),"0"),"") -> 0 | H36: =IFERROR(((C36*D36+E36*F36)/G36)+2/AN$59,"0") -> 0 | J36: =IF((I36*(Fuel_Specs!$C$48-$D$215)*Fuel_Specs!$C$50*Fuel_Specs!$C$51*Fuel_Specs!$C$52/kWh2Btu)>0,(I36*(Fuel_Specs!$C$48-$D$215)*Fuel_Specs!$C$50*Fuel_Specs!$C$51*Fuel_Specs!$C$52/kWh2Btu),0) -> 0 | S36: =IFERROR(IF((Q36-L36*$Q$60)>0,(Q36-L36*$Q$60),0),"0") -> 0 | V36: =IFERROR(IF((T36-L36*$T$60)>0,(T36-L36*$T$60),0),"0") -> 0 | X36: =IFERROR(S36*(1-R36)+V36*(1-U36),"0") -> 0
G37: =IFERROR(IF((C37+E37)>0,(C37+E37),"0"),"") -> 0 | H37: =IFERROR(((C37*D37+E37*F37)/G37)+2/AN$59,"0") -> 0 | J37: =IF((I37*(Fuel_Specs!$C$48-$D$215)*Fuel_Specs!$C$50*Fuel_Specs!$C$51*Fuel_Specs!$C$52/kWh2Btu)>0,(I37*(Fuel_Specs!$C$48-$D$215)*Fuel_Specs!$C$50*Fuel_Specs!$C$51*Fuel_Specs!$C$52/kWh2Btu),0) -> 0 | S37: =IFERROR(IF((Q37-L37*$Q$60)>0,(Q37-L37*$Q$60),0),"0") -> 0 | V37: =IFERROR(IF((T37-L37*$T$60)>0,(T37-L37*$T$60),0),"0") -> 0 | X37: =IFERROR(S37*(1-R37)+V37*(1-U37),"0") -> 0 | BA37: ='EF Tables'!Z74-'EF Tables'!AA74 -> 0
G38: =IFERROR(IF((C38+E38)>0,(C38+E38),"0"),"") -> 0 | H38: 0 | J38: =IF((I38*(Fuel_Specs!$C$48-$D$215)*Fuel_Specs!$C$50*Fuel_Specs!$C$51*Fuel_Specs!$C$52/kWh2Btu)>0,(I38*(Fuel_Specs!$C$48-$D$215)*Fuel_Specs!$C$50*Fuel_Specs!$C$51*Fuel_Specs!$C$52/kWh2Btu),0) -> 0 | S38: 0 | V38: 0 | X38: 0
G39: =IFERROR(IF((C39+E39)>0,(C39+E39),"0"),"") -> 0 | H39: 0 | J39: =IF((I39*(Fuel_Specs!$C$48-$D$215)*Fuel_Specs!$C$50*Fuel_Specs!$C$51*Fuel_Specs!$C$52/kWh2Btu)>0,(I39*(Fuel_Specs!$C$48-$D$215)*Fuel_Specs!$C$50*Fuel_Specs!$C$51*Fuel_Specs!$C$52/kWh2Btu),0) -> 0 | S39: 0 | V39: 0 | X39: 0 | AL39: Choices for Field 1.6:
G40: 0 | H40: 0 | J40: =IF((I40*(Fuel_Specs!$C$48-$D$215)*Fuel_Specs!$C$50*Fuel_Specs!$C$51*Fuel_Specs!$C$52/kWh2Btu)>0,(I40*(Fuel_Specs!$C$48-$D$215)*Fuel_Specs!$C$50*Fuel_Specs!$C$51*Fuel_Specs!$C$52/kWh2Btu),0) -> 0 | S40: 0 | V40: 0 | X40: 0 | AL40: Yes
G41: 0 | H41: 0 | J41: =IF((I41*(Fuel_Specs!$C$48-$D$215)*Fuel_Specs!$C$50*Fuel_Specs!$C$51*Fuel_Specs!$C$52/kWh2Btu)>0,(I41*(Fuel_Specs!$C$48-$D$215)*Fuel_Specs!$C$50*Fuel_Specs!$C$51*Fuel_Specs!$C$52/kWh2Btu),0) -> 0 | S41: 0 | V41: 0 | X41: 0 | AL41: No
G42: 0 | H42: 0 | J42: =IF((I42*(Fuel_Specs!$C$48-$D$215)*Fuel_Specs!$C$50*Fuel_Specs!$C$51*Fuel_Specs!$C$52/kWh2Btu)>0,(I42*(Fuel_Specs!$C$48-$D$215)*Fuel_Specs!$C$50*Fuel_Specs!$C$51*Fuel_Specs!$C$52/kWh2Btu),0) -> 0 | S42: 0 | V42: 0 | X42: 0
G43: 0 | H43: 0 | J43: =IF((I43*(Fuel_Specs!$C$48-$D$215)*Fuel_Specs!$C$50*Fuel_Specs!$C$51*Fuel_Specs!$C$52/kWh2Btu)>0,(I43*(Fuel_Specs!$C$48-$D$215)*Fuel_Specs!$C$50*Fuel_Specs!$C$51*Fuel_Specs!$C$52/kWh2Btu),0) -> 0 | S43: 0 | V43: 0 | X43: 0
G44: 0 | H44: 0 | J44: =IF((I44*(Fuel_Specs!$C$48-$D$215)*Fuel_Specs!$C$50*Fuel_Specs!$C$51*Fuel_Specs!$C$52/kWh2Btu)>0,(I44*(Fuel_Specs!$C$48-$D$215)*Fuel_Specs!$C$50*Fuel_Specs!$C$51*Fuel_Specs!$C$52/kWh2Btu),0) -> 0 | S44: 0 | V44: 0 | X44: 0
G45: 0 | H45: 0 | J45: =IF((I45*(Fuel_Specs!$C$48-$D$215)*Fuel_Specs!$C$50*Fuel_Specs!$C$51*Fuel_Specs!$C$52/kWh2Btu)>0,(I45*(Fuel_Specs!$C$48-$D$215)*Fuel_Specs!$C$50*Fuel_Specs!$C$51*Fuel_Specs!$C$52/kWh2Btu),0) -> 0 | S45: 0 | V45: 0 | X45: 0
G46: 0 | H46: 0 | J46: =IF((I46*(Fuel_Specs!$C$48-$D$215)*Fuel_Specs!$C$50*Fuel_Specs!$C$51*Fuel_Specs!$C$52/kWh2Btu)>0,(I46*(Fuel_Specs!$C$48-$D$215)*Fuel_Specs!$C$50*Fuel_Specs!$C$51*Fuel_Specs!$C$52/kWh2Btu),0) -> 0 | S46: 0 | V46: 0 | X46: 0
G47: 0 | H47: 0 | J47: =IF((I47*(Fuel_Specs!$C$48-$D$215)*Fuel_Specs!$C$50*Fuel_Specs!$C$51*Fuel_Specs!$C$52/kWh2Btu)>0,(I47*(Fuel_Specs!$C$48-$D$215)*Fuel_Specs!$C$50*Fuel_Specs!$C$51*Fuel_Specs!$C$52/kWh2Btu),0) -> 0 | S47: 0 | V47: 0 | X47: 0
G48: 0 | H48: 0 | J48: =IF((I48*(Fuel_Specs!$C$48-$D$215)*Fuel_Specs!$C$50*Fuel_Specs!$C$51*Fuel_Specs!$C$52/kWh2Btu)>0,(I48*(Fuel_Specs!$C$48-$D$215)*Fuel_Specs!$C$50*Fuel_Specs!$C$51*Fuel_Specs!$C$52/kWh2Btu),0) -> 0 | S48: 0 | V48: 0 | X48: 0 | AL48: g2T | AN48: 1.10231e-06
G49: 0 | H49: 0 | J49: =IF((I49*(Fuel_Specs!$C$48-$D$215)*Fuel_Specs!$C$50*Fuel_Specs!$C$51*Fuel_Specs!$C$52/kWh2Btu)>0,(I49*(Fuel_Specs!$C$48-$D$215)*Fuel_Specs!$C$50*Fuel_Specs!$C$51*Fuel_Specs!$C$52/kWh2Btu),0) -> 0 | S49: 0 | V49: 0 | X49: 0 | AL49: gal2L | AN49: 3.785411
G50: 0 | H50: 0 | J50: =IF((I50*(Fuel_Specs!$C$48-$D$215)*Fuel_Specs!$C$50*Fuel_Specs!$C$51*Fuel_Specs!$C$52/kWh2Btu)>0,(I50*(Fuel_Specs!$C$48-$D$215)*Fuel_Specs!$C$50*Fuel_Specs!$C$51*Fuel_Specs!$C$52/kWh2Btu),0) -> 0 | S50: 0 | V50: 0 | X50: 0 | AL50: MT2T | AN50: 1.102311311
G51: 0 | H51: 0 | J51: =IF((I51*(Fuel_Specs!$C$48-$D$215)*Fuel_Specs!$C$50*Fuel_Specs!$C$51*Fuel_Specs!$C$52/kWh2Btu)>0,(I51*(Fuel_Specs!$C$48-$D$215)*Fuel_Specs!$C$50*Fuel_Specs!$C$51*Fuel_Specs!$C$52/kWh2Btu),0) -> 0 | S51: 0 | V51: 0 | X51: 0
G52: 0 | H52: 0 | J52: =IF((I52*(Fuel_Specs!$C$48-$D$215)*Fuel_Specs!$C$50*Fuel_Specs!$C$51*Fuel_Specs!$C$52/kWh2Btu)>0,(I52*(Fuel_Specs!$C$48-$D$215)*Fuel_Specs!$C$50*Fuel_Specs!$C$51*Fuel_Specs!$C$52/kWh2Btu),0) -> 0 | S52: 0 | V52: 0 | X52: 0 | AL52: m32gal | AN52: 264.1721071
G53: 0 | H53: 0 | J53: =IF((I53*(Fuel_Specs!$C$48-$D$215)*Fuel_Specs!$C$50*Fuel_Specs!$C$51*Fuel_Specs!$C$52/kWh2Btu)>0,(I53*(Fuel_Specs!$C$48-$D$215)*Fuel_Specs!$C$50*Fuel_Specs!$C$51*Fuel_Specs!$C$52/kWh2Btu),0) -> 0 | S53: 0 | V53: 0 | X53: 0
G54: 0 | H54: 0 | J54: =IF((I54*(Fuel_Specs!$C$48-$D$215)*Fuel_Specs!$C$50*Fuel_Specs!$C$51*Fuel_Specs!$C$52/kWh2Btu)>0,(I54*(Fuel_Specs!$C$48-$D$215)*Fuel_Specs!$C$50*Fuel_Specs!$C$51*Fuel_Specs!$C$52/kWh2Btu),0) -> 0 | S54: 0 | V54: 0 | X54: 0 | AL54: Ethanol energy density (MJ/gal) | AN54: 80.53241303
G55: 0 | H55: 0 | J55: =IF((I55*(Fuel_Specs!$C$48-$D$215)*Fuel_Specs!$C$50*Fuel_Specs!$C$51*Fuel_Specs!$C$52/kWh2Btu)>0,(I55*(Fuel_Specs!$C$48-$D$215)*Fuel_Specs!$C$50*Fuel_Specs!$C$51*Fuel_Specs!$C$52/kWh2Btu),0) -> 0 | S55: 0 | V55: 0 | X55: 0 | AL55: Ethanol LHV (Btu/gal) | AN55: 76330
G56: 0 | H56: 0 | J56: =IF((I56*(Fuel_Specs!$C$48-$D$215)*Fuel_Specs!$C$50*Fuel_Specs!$C$51*Fuel_Specs!$C$52/kWh2Btu)>0,(I56*(Fuel_Specs!$C$48-$D$215)*Fuel_Specs!$C$50*Fuel_Specs!$C$51*Fuel_Specs!$C$52/kWh2Btu),0) -> 0 | S56: 0 | V56: 0 | X56: 0 | AL56: kWh2Btu | AN56: 3412.141642
G57: 0 | H57: 0 | J57: =IF((I57*(Fuel_Specs!$C$48-$D$215)*Fuel_Specs!$C$50*Fuel_Specs!$C$51*Fuel_Specs!$C$52/kWh2Btu)>0,(I57*(Fuel_Specs!$C$48-$D$215)*Fuel_Specs!$C$50*Fuel_Specs!$C$51*Fuel_Specs!$C$52/kWh2Btu),0) -> 0 | S57: 0 | V57: 0 | X57: 0 | AL57: Btu2J | AN57: 1055.05585
G58: 0 | H58: 0 | J58: =IF((I58*(Fuel_Specs!$C$48-$D$215)*Fuel_Specs!$C$50*Fuel_Specs!$C$51*Fuel_Specs!$C$52/kWh2Btu)>0,(I58*(Fuel_Specs!$C$48-$D$215)*Fuel_Specs!$C$50*Fuel_Specs!$C$51*Fuel_Specs!$C$52/kWh2Btu),0) -> 0 | S58: =IFERROR(IF((Q58-L58*$Q$60)>0,(Q58-L58*$Q$60),0),"0") -> 0 | V58: =IFERROR(IF((T58-L58*$T$60)>0,(T58-L58*$T$60),0),"0") -> 0 | X58: =IFERROR(S58*(1-R58)+V58*(1-U58),"0") -> 0
B59: 2-Year Total | C59: =SUM(C35:C58) -> 0 | D59: =IFERROR(SUMPRODUCT(C35:C58,D35:D58)/C59,0) -> 0 | E59: =SUM(E35:E58) -> 0 | F59: =IFERROR(SUMPRODUCT(E35:E58,F35:F58)/E$59,0) -> 0 | G59: =IFERROR(SUM(G35:G58),"") -> 0 | H59: =IFERROR(AVERAGE(H35:H58),"0.0") -> 0.0 | I59: =SUM(I35:I58) -> 0 | J59: 0 | K59: 0 | L59: 0 | M59: 0 | N59: 0 | O59: =IFERROR(SUMPRODUCT($G35:$G58,$O35:$O58)/$G59,0) -> 0 | P59: =IFERROR(SUMPRODUCT($G35:$G58,$P35:$P58)/$G$59,"0.0") -> 0.0 | Q59: =SUM(Q35:Q58) -> 0 | R59: =IFERROR(SUMPRODUCT($Q35:$Q58*$R35:$R58)/$Q$59,"0.00%") -> 0.00% | S59: =SUM(S35:S58) -> 0 | T59: =SUM(T35:T58) -> 0 | U59: =IFERROR(SUMPRODUCT($T35:$T58*$U35:$U58)/$T$59,"0.00%") -> 0.00% | V59: =SUM(V35:V58) -> 0 | W59: =IFERROR(SUM(W35:W58),"0") -> 0 | X59: =IF(SUM(X34:X58)>0,SUM(X34:X58),0) -> 0 | AL59: km2mi | AN59: 0.6213711922
B60: annual avg | E60: Mi -> | F60: =F61/1.609 -> 0 | H60: =H59*AN59 -> 0 | I60: <- Mi | Q60: =Q59/(Q59+T59) ->  | T60: =1-Q60 ->  | AM60: ='EF Tables'!Z74+'EF Tables'!Z75 -> 0
E61: Km: -> | F61: =IFERROR((SUMPRODUCT(C35:C58,D35:D58)+SUMPRODUCT(E35:E58,F35:F58))/(SUM(C35:C58)+SUM(E35:E58)),0) -> 0
W62: Total Ethanol (gal): | X62: =IF(X59*264.1593>0,X59*264.1593,"0") -> 0
B64: Section 4: Calculation of Production Yields and Mass Allocation Ratio
B65: Step 4a (6): Select "Data" from the Excel File Menu (Header) above. Then Click the "Solver" icon menu above to the far right of the header. Ensure that the "Set Objective" refers to Cell E88, and is set to a value of 0.0. See instructions below to install the "Solver Add-In" functionality to your current version of Microsoft Excel.
B66: Step 4b: Do not change any of the constraints defined in the window (see User Instruction documentation for Section 4). Then Click the "Solve" Button.
B67: Step 4c: The Solver will go through several iterations to find a solution. A new window "Solver Results" will open up. Solver will display the message that a solution has been found.
B68: Step 4d: Click OK. If a solution has not been found, then check the data for accuracy (Step 2), and then repeat Step 3 until a solution has been found, and all constriants and optimality conditions have been satisfied.
B69: Step 4e: If a solution has not still been found, then check the juice shares (fraction juice allocated to sugar production), and the fraction of sucrose in the cane juice that enters production. The level of sucrose (eta_j) could be lower due to process losses even if measured higher at the gate or after crush.
B70: Gopal-Kammen Model Parameters | H70: INSTRUCTIONS TO INSTALL "SOLVER ADD-IN" FUNCTIONALITY TO MICROSOFT EXCEL.
B71: Mill-specific values for ethanol yield calculation and ethanol production modeling | H71: 1. Click or go to "File" in the Header Menu
B72: 4.1 ηj (tonnes of fermentable sugars in juice/tonne of cane) | G72: =$P$59 -> 0.0 | H72: 2. Click or Select "Options" on the far Left Side Menu.
B73: 4.2 ηs (tonnes of sucrose in final sugar/tonne of sucrose into sugar factory) | G73: 0.6325330705 | H73: 3. A new Window "Excel Options" opens up. Select "Add-ins" on the Left Side Menu.
B74: 4.3 Sucrose in Molasses (tonnes sucrose in molasses/tonne of sugarcane) | G74: =eta_j*(1-eta_s) -> 0 | H74: 4. In the Dialogue Box Select "Solver Add-in" either in the "Active Application," or "Inactive Application Add-ins." Click OK. | AL74: Standard Value
B75: 4.4 ηe (dry tonnes of EtOH/tonne of fermentable sugars into distillery) | G75: 0.4522771363 | H75: 5. If you don’t see the "Solver Add-in," do the following: | AL75: User Defined
B76: 4.5 LHV of anhydrous EtOH (MMBtu/dry tonne EtOH) | E76: Select from the Drop Down Menu Below | F76: Enter User Defined Values Below, if Applicable, then F9 | G76: 25.54551539 | H76: 6. At the Bottom of the Dialogue Box, Select or Manage "Excel Add-Ins" from the Drop-down Menu. Then Select "Go." | AL76: Standard Value
B77: 4.6 Choose ms (tonnes of sucrose in final sugar/tonne of final sugar product) | E77: Standard Value | F77: 0.995 | G77: =IF(E77="Standard Value",0.99,F77) -> 0.99 | H77: 7. An "Add-Ins" Window will Open. In the Window, Select or Check the Box for "Solver Add-in," | AL77: User Defined
B78: 4.7 Choose mm (tonnes of fermentable sugars in std molasses/tonne of std molasses) | E78: Standard Value | F78: 0.525 | G78: =IF(E78="Standard Value",0.5,F78) -> 0.5 | H78: and the Box for "Analysis ToolPak." Then Click OK.
B79: Yield of Finished Sugar, Standard Molasses, and Ethanol | F79: Cane Juice-to-Molasses | G79: Cane Juice-to-Ethanol | H79: 8. Go to the Excel Header Menu and delect "Data." The "Solver" function (?->) is located at the far right in the "Analyze" box.
B80: Fraction of sugarcane juice sent to finished sugar | F80: 1 | G80: 0
B81: Finished sugar yield (tonnes of finished sugar/tonne of cane) | F81: =F80*$G$72*$G$73/$G$77 -> 0 | G81: =G80*$G$72*$G$73/$G$77 -> 0
B82: By-product molasses yield (tonnes of std molasses/tonnes of cane) | F82: =F80*$G$74/$G$78 -> 0 | G82: =G80*$G$74/$G$78 -> 0
B83: EtOH Yield (liters of EtOH/metric tonne cane) | F83: =$G$75*$G$72*(1-F80*$G$73)/(Fuel_Specs!$D$75*$AN$48/$AN$49) -> 0 | G83: =$G$75*$G$72*(1-G80*$G$73)/(Fuel_Specs!$D$75*$AN$48/$AN$49) -> 0
B84: EtOH Yield (gal of EtOH / metric tonne cane) | F84: =IF(O$59=0%,0,F83/$AN$49) -> 0 | G84: =IF(O$59=100%,0,G83/$AN$49) -> 0
F85: Molasses-Ethanol | G85: Cane Juice-Ethanol
B86: 4.8 Modeled ethanol production (dry gal) | E86: =SUM(F86:G86) -> 0 | F86: =F84*$O$59*$G$59 -> 0 | G86: =G84*(1-$O$59)*$G$59 -> 0
B87: 4.9 Adjusted reported ethanol production (dry gal) | E87: =((SUMPRODUCT(S35:S58,(1-R35:R58))+SUMPRODUCT(V35:V58,(1-U35:U58)))*AN52) -> 0
B88: 4.10 Difference between modeled and adjusted reported ethanol production numbers | E88: =E87-(F86+G86) -> 0
B89: 4.11 Modeled finished sugar production (metric tonnes) | E89: =F81*$O$59*$G$59 -> 0
B90: 4.12 Reported finished sugar production (metric tonnes) | E90: =$W$59 -> 0 | F90: =ABS(E91) -> 0
B91: 4.13 Difference between modeled and reported Finished Sugar Production: | E91: =$W$59-$E$89 -> 0 | F91: 4.14 Mass Allocation Ratio: | G91: =IFERROR(IF(O$59=0%,0,G74/G72),"0.0") -> 0
B93: Section 5: Verify Fuel and Co-Product Production Information
B94: 5.1 Amount of Ethanol Produced from Cane Juice, dry gal | C94: =G$86 -> 0 | D94: 5.3 Ethanol Volume from Molasses, dry gal | E94: =F$86 -> 0 | F94: 5.5 Total Ethanol Volume Produced, dry gal | G94: =F86+G86 -> 0 | H94: 5.7 Net Surplus Cogenerated Electricity Exported (kWh) | I94: =(N59-M59) -> 0 | J94: 5.9 Electricity Co-Product Credit (kWh/gal) (Molasses Feedstock) | K94: =IFERROR('EF Tables'!G$73,0) -> 0 | L94: 5.11 Composite Electricity Co-Product Credit (kWh/gal)
B95: 5.2 Cane Juice-to-Ethanol Yield (gal/wet tonne cane) | C95: =$G$84 -> 0 | D95: 5.4 Molasses-to-Ethanol Yield (gal/wet tonne cane) | E95: =$F$84 -> 0 | F95: 5.6 Total Amount of Finished Sugar Produced, metric tons | G95: =W59 -> 0 | H95: 5.8 Net Electricity Credited to Pathway (kWh) (8) | I95: =IFERROR(I$94*(1-I$22)*O$59*G$91+I$94*(1-I$22)*(1-O$59),"0") -> 0 | J95: 5.10 Electricity Co-Product Credit (kWh/gal) (Cane Juice Feedstock) | K95: =IFERROR('EF Tables'!G$74,0) -> 0 | L95: =IFERROR(IF($I$21="No", 0, 'EF Tables'!G$75),"0.0") -> 0.0
B97: Select Regional Electricity Mix
B98: 1-U.S Ave Mix
B99: 2-User Defined Mix
B100: 3-CAMX Mix
B101: 4-NWPP Mix
B102: 5-AZNM Mix
B103: 6-RMPA Mix
B104: 7-MROW Mix
B105: 8-SPNO Mix
B106: 9-SPSO Mix
B107: 10-ERCT Mix
B108: 11-MROE Mix
B109: 12-SRMW Mix | E109: 0
B110: 13-SRMV Mix
B111: 14-RFCM Mix
B112: 15-RFCW Mix
B113: 16-SRTV Mix
B114: 17-SRSO Mix
B115: 18-NEWE Mix
B116: 19-NYUP Mix
B117: 20-RFCE Mix
B118: 21-NYLI Mix
B119: 22-NYCW Mix
B120: 23-SRVC Mix
B121: 24-FRCC Mix
B122: 25-AKMS Mix
B123: 26-AKGD Mix
B124: 27-HIOA Mix
B125: 28-HIMS Mix
B126: 29-Brazilian Mix
B127: 30-Canadian Mix
B128: Emissions Factor (EF)-based Aggregated CI Impact Determination for Sugarcane Juice Feedstock
C129: Sugarcane Agriculture & Farming Impacts (gCO2e/m.t. cane) | D129: Cane & Filtercake Transport (gCO2e/tonne-mile) | E129: Straw Burning Emissions (gCO2e/m.t. cane) | F129: Sugar Production Emissions (gCO2e/m.t. cane) | G129: Net Surplus Cogenerated Electricity Credit (gCO2e/kWh) | H129: Ethanol Production Emissions (gCO2e/gal) | I129: Anhydrous Ethanol Truck Transport in Brazil Emissions (gCO2e/gal-mile) | J129: Anhydrous Ethanol Ocean Transport Emissions (gCO2e/gal-mile) | K129: Ethanol Truck Transport in California Emissions (gCO2e/gal-mile) | L129: Denaturant Emissions (gCO2e/gal) | M129: ILUC (gCO2e/gal) | N129: TOTAL CI (gCO2e/MJ)
B130: Emissions Factor (EF) | C130: =IFERROR('EF General'!O22,"0.0") -> 0 | D130: =IFERROR('EF Tables'!H$14/SUM('EF Tables'!C$8+'EF Tables'!D$8),"0.0") -> 401.2378654 | E130: ='EF General'!$D$37 -> 17336.277 | F130: NA | G130: ='EF Tables'!H$85 -> 0 | H130: =IFERROR('EF General'!I$92,"0.0") -> 0 | I130: ='EF General'!$K$170 -> 0.4047848132 | J130: ='EF General'!H$170 -> 0.08711453183 | K130: ='EF General'!$L$170 -> 0.4048636039 | L130: =IFERROR('EF General'!I$116,"0.0") -> 0 | M130: =IFERROR('EF General'!H$126,"0.0") -> 950.2862116
B131: Total Cane Procured (m.t.): | C131: =IF($G$59>0,$G$59,"-") -> - | D131: =$G$59 -> 0 | E131: =$G$59 -> 0 | F131: 0 | G131: =CONCATENATE((N$59-M$59-J$59)," kWh") -> 0 kWh | H131: =$G$59 -> 0 | I131: =CONCATENATE(($C$27/1.609)," total truck miles") -> 0 total truck miles | J131: =CONCATENATE(E$27/1.609," ocean miles") -> 0 ocean miles | K131: =CONCATENATE(G$26+G$27," miles") -> 90 miles | L131: =$G$59 -> 0 | M131: =$G$59 -> 0
B132: Total Ethanol Produced (dry gal): | C132: =IF($X$59>0,$X$59*264.1596,"-") -> - | D132: =$X$59*264.1596 -> 0 | E132: 0 | F132: 0 | G132: 0 | H132: 0 | I132: =$S$59*(1-$R$59)*264.1596 -> 0 | J132: =$S$59*(1-$R$59)*264.1596 -> 0 | K132: =$S$59*(1-$R$59)*264.1596/0.975 -> 0 | L132: =$S$59*(1-$R$59)*264.1596 -> 0 | M132: =$X$59*264.1596 -> 0
B133: Total Emissions (gCO2e) | C133: =IF(G$59>0,C130*$G$59,"-") -> - | D133: =D130*(($H$59)/1.609)*(G$59) -> 0 | E133: =E130*$G$59 -> 0 | F133: 0 | G133: =-G130*(N$59-M$59-J$59) -> 0 | H133: =H130*$X$59*264.1596 -> 0 | I133: =I130*((C$27/1.609))*I132*264.1596 -> 0 | J133: =J130*(J132)*((E$27/1.609)) -> 0 | K133: =K130*($G$26+$G$27)*K132 -> 0 | L133: =L130*L132 -> 0 | M133: =M130*($X$59*264.1596) -> 0
B134: Emissions (Sugarcane for Sugar) (gCO2e) | C134: =IFERROR((C135/$G$91)-C135,"-") -> - | D134: =IFERROR((D$135/$G$91)-D$135,"-") -> - | E134: =E133-E136-E135 -> 0 | F134: 0 | G134: =G133-G136-G135 -> 0 | H134: =IFERROR(H133-H136-H135,"-") -> - | I134: - | J134: =IFERROR(J133-J136-J135,"-") -> - | K134: =IFERROR(K133-K136-K135,"-") -> - | L134: 0 | M134: =IFERROR(M133-M136-M135,"-") -> -
B135: Emissions (Sugarcane for Molasses) (gCO2e) | C135: =IFERROR((C133-C136)*G$91,"-") -> - | D135: =(D133-D136)*G$91 -> 0 | E135: =(E133-E136)*G91 -> 0 | F135: 0 | G135: =(G133-G136)*G$91 -> 0 | H135: =IFERROR(H133-H136,"-") -> - | I135: - | J135: =IFERROR(J133-J136,"-") -> - | K135: =IFERROR(K133-K136,"-") -> - | L135: ='EF Tables'!C$124*Calculator!F$86*76330*1055.06/10^6 -> 0 | M135: =IFERROR(M133-M136,"-") -> - | N135: =IFERROR(M135+L135+K182+H135+J182+I135+G135+F135+E135+D135+C135,"-") -> -
B136: Emissions (Sugarcane for Juice) (gCO2e) | C136: =IFERROR(C133*(1-$O$59),"-") -> - | D136: =D133*(1-O$59) -> 0 | E136: =E133*(1-$O$59) -> 0 | F136: 0 | G136: =G133*(1-O$59) -> 0 | H136: =IFERROR(H133*$G$86/($F$86+$G$86),"-") -> - | I136: - | J136: =IFERROR(J133*$G$86/($F$86+$G$86),"-") -> - | K136: =IFERROR(K133*$G$86/($F$86+$G$86),"-") -> - | L136: ='EF Tables'!D$124*Calculator!G$86*76330*1055.06/10^6 -> 0 | M136: =IFERROR(M133*$G$86/($F$86+$G$86),"-") -> - | N136: =IFERROR(M136+L136+H136+J183+K183+I136+G136+F136+E136+D136+C136,"-") -> -
B137: CI Calc Using EF (gCO2e/MJ) | C137: =IF(O$59=100%,"-",IFERROR((C130*C131*((1-O$59)+$O$59*$G$91)/($C132*76330*1055.06/10^6)),"-")) -> - | D137: =IF(O$59=100%,0,IFERROR(SUM(D$135:D$136)/((F$86+G$86)*76330*1055.06/10^6),0)) -> 0 | E137: =IF(O$59=100%,0,IFERROR((1-$K$23)*E130*G$59*((1-$O$59)+$O$59*$G$91)/($E132*76330*1055.06/10^6),0)) -> 0 | F137: 0 | G137: =IF(O$59=100%,0,-G130*L$95/(76330*1055.06/10^6)) -> 0 | H137: =IF(X59=0,0,IF(O$59=100%,0,H130/(76330*1055.06/10^6))) -> 0 | I137: =IF(X59=0,0,IF(O$59=100%,0,I130*((C$27/1.609))*10^6/(76330*1055.06))) -> 0 | J137: =IF(X59=0,0,IF(O$59=100%,0,J130*((E$27/1.609)*10^6/(76330*1055.06)))) -> 0 | K137: =IF(X59=0,0,IF(O$59=100%,0,K130*($G$26+$G$27)*10^6/(76330*1055.06))) -> 0 | L137: =IF(O$59=100%,0,L130/(76330*1055.06/10^6)) -> 0 | M137: =IF(X59=0,0,IF(O$59=100%,0,M130/(76330*1055.06/10^6))) -> 0 | N137: =IF(O$59=100%,0,IFERROR(M137+L137+K137+J137+I137+H137+G137+F137+E137+D137+C137,"0.00")) -> 0.00
B139: Emissions Factor (EF)-based Aggregated CI Impact Determination for Sugarcane Molasses Feedstock
C140: Sugarcane Agriculture & Farming Impacts (gCO2e/m.t. cane) | D140: Cane & Filtercake Transport (gCO2e/tonne-mile) | E140: Straw Burning Emissions (gCO2e/m.t. cane) | F140: Sugar Production Emissions (gCO2e/m.t. cane) | G140: Net Surplus Cogenerated Electricity Credit (gCO2e/kWh) | H140: Ethanol Production Emissions (gCO2e/gal) | I140: Anhydrous Ethanol Truck Transport in Brazil Emissions (gCO2e/gal-mile) | J140: Anhydrous Ethanol Ocean Transport Emissions (gCO2e/gal-mile) | K140: Ethanol Truck Transport in California Emissions (gCO2e/gal-mile) | L140: Denaturant Emissions (gCO2e/gal) | M140: ILUC (gCO2e/gal) | N140: TOTAL CI (gCO2e/MJ)
B141: Emissions Factor (EF) | C141: =IFERROR('EF General'!J31,"-") -> 0 | D141: =IFERROR('EF Tables'!H$14/SUM('EF Tables'!C$8+'EF Tables'!D$8),"0.0") -> 401.2378654 | E141: ='EF General'!$D$37 -> 17336.277 | F141: =3700/(2000*0.4536/1000) -> 4078.483245 | G141: ='EF Tables'!G$85 -> 0 | H141: =IFERROR('EF General'!I$92,"0.0") -> 0 | I141: ='EF General'!$K$170 -> 0.4047848132 | J141: ='EF General'!H$170 -> 0.08711453183 | K141: ='EF General'!$L$170 -> 0.4048636039 | L141: =IFERROR('EF General'!I$115,"0.0") -> 0 | M141: =IFERROR('EF General'!H$126,"0.0") -> 950.2862116
B142: Total Cane Procured (m.t.): | C142: =IF($G$59>0,$G$59,"-") -> - | D142: =$G$59 -> 0 | E142: =$G$59 -> 0 | F142: =$G$59 -> 0 | G142: =CONCATENATE((N$59-M$59-J$59)," kWh") -> 0 kWh | H142: =$G$59 -> 0 | I142: =CONCATENATE(($C$27/1.609)," total truck miles") -> 0 total truck miles | J142: =CONCATENATE(E$27/1.609," ocean miles") -> 0 ocean miles | K142: =CONCATENATE(G$26+G$27," miles") -> 90 miles | L142: =$G$59 -> 0 | M142: =$G$59 -> 0
B143: Total Ethanol Produced (dry gal): | C143: =IF($X$59>0,$X$59*264.1596,"-") -> - | D143: =$X$59*264.1596 -> 0 | E143: 0 | F143: 0 | G143: 0 | H143: 0 | I143: =$S$59*(1-$R$59)*264.1596 -> 0 | J143: =$S$59*(1-$R$59)*264.1596 -> 0 | K143: =$S$59*(1-$R$59)*264.1596/0.975 -> 0 | L143: =$S$59*(1-$R$59)*264.1596 -> 0 | M143: =$X$59*264.1596 -> 0
B144: Total Emissions (gCO2e) | C144: =IF(G$59>0,C141*$G$59,"-") -> - | D144: =D141*(($H$59)/1.609)*(G$59) -> 0 | E144: =E141*$G$59 -> 0 | F144: =F141*$G$59*O$59 -> 0 | G144: =-G141*(N$59-M$59-J$59) -> 0 | H144: =H141*$X$59*264.1596 -> 0 | I144: =I141*((C$27/1.609))*I143*264.1596 -> 0 | J144: =J141*(J143)*((E$27/1.609)) -> 0 | K144: =K141*($G$26+$G$27)*K143 -> 0 | L144: =L141*L143 -> 0 | M144: =M141*($X$59*264.1596) -> 0
B145: Emissions (Sugarcane for Sugar) (gCO2e) | C145: =IFERROR((C146/$G$91)-C146,"-") -> - | D145: =IFERROR((D$135/$G$91)-D$135,"-") -> - | E145: =E144-E147-E146 -> 0 | F145: =F$141*G$59*O$59 -> 0 | G145: =G144-G147-G146 -> 0 | H145: =IFERROR(H144-H147-H146,"-") -> - | I145: =IFERROR(I144-I147-I146,"-") -> - | J145: =IFERROR(J144-J147-J146,"-") -> - | K145: =IFERROR(K144-K147-K146,"-") -> - | L145: 0 | M145: =IFERROR(M144-M147-M146,"-") -> -
B146: Emissions (Sugarcane for Molasses) (gCO2e) | C146: =IFERROR((C144-C147)*G$91,"-") -> - | D146: =(D144-D147)*G$91 -> 0 | E146: =(E144-E147)*G91 -> 0 | F146: =F141*$G$59*G$91*O$59 -> 0 | G146: =(G144-G147)*G$91 -> 0 | H146: =IFERROR(H144-H147,"-") -> - | I146: =IFERROR(I144-I147,"-") -> - | J146: =IFERROR(J144-J147,"-") -> - | K146: =IFERROR(K144-K147,"-") -> - | L146: ='EF Tables'!C$124*Calculator!F$86*76330*1055.06/10^6 -> 0 | M146: =IFERROR(M144-M147,"-") -> -
B147: Emissions (Sugarcane for Juice) (gCO2e) | C147: =IFERROR(C144*(1-$O$59),0) -> 0 | D147: =D144*(1-O$59) -> 0 | E147: =E144*(1-$O$59) -> 0 | F147: 0 | G147: =G144*(1-O$59) -> 0 | H147: =IFERROR(H144*$G$86/($F$86+$G$86),"-") -> - | I147: =IFERROR(I144*$G$86/($F$86+$G$86),"-") -> - | J147: =IFERROR(J144*$G$86/($F$86+$G$86),"-") -> - | K147: =IFERROR(K144*$G$86/($F$86+$G$86),"-") -> - | L147: ='EF Tables'!D$124*Calculator!G$86*76330*1055.06/10^6 -> 0 | M147: =IFERROR(M144*$G$86/($F$86+$G$86),"-") -> -
B148: CI Calc Using EF (gCO2e/MJ) | C148: =IF(O$59=0%,"-",IFERROR(C141*C142*((1-O$59)+$O$59*$G$91)/($C143*76330*1055.06/10^6),0)) -> - | D148: =IF(O$59=0%,0,IFERROR(SUM(D$135:D$136)/((F$86+G$86)*76330*1055.06/10^6),"0.0")) -> 0 | E148: =IF(O$59=0%,0,IFERROR((1-$K$23)*E141*G$59*((1-$O$59)+$O$59*$G$91)/($E143*76330*1055.06/10^6),"0.0")) -> 0 | F148: =IF(O$59=0%,0,IFERROR(F141*G$59*$O$59*$G$91/($F$86*76330*1055.06/10^6),0)) -> 0 | G148: =IF(O$59=0%,0,-G141*L$95/(76330*1055.06/10^6)) -> 0 | H148: =IF(O$59=0%,0,H141/(76330*1055.06/10^6)) -> 0 | I148: =IF(O$59=0%,0,I141*((C$27/1.609))*10^6/(76330*1055.06)) -> 0 | J148: =IF(O$59=0%,0,J141*((E$27/1.609)*10^6/(76330*1055.06))) -> 0 | K148: =IF(O$59=0%,0,K141*($G$26+$G$27)*10^6/(76330*1055.06)) -> 0 | L148: =IF(O$59=0%,0,L141/(76330*1055.06/10^6)) -> 0 | M148: =IF(O$59=0%,0,M141/(76330*1055.06/10^6)) -> 0 | N148: =IF(O$59=0%,"0.00",IF(O59=0,0,M148+L148+K148+J148+I148+H148+G148+F148+E148+D148+C148)) -> 0.00
B150: CI Calculations
B151: Sugarcane Molasses-based Ethanol | F151: Juice-to-Sugar Share | G151: =Calculator!O59 -> 0 | H151: Sugarcane Juice-based Ethanol | L151: Juice-to-Fuel Share | M151: =1-G151 -> 1
B152: eGRID (Electricity Mix) region | D152: =I23 -> 29-Brazilian Mix | E152: Value | F152: Total Emissions (gCO2e) | G152: CI, gCO2e/MJ | H152: eGRID (Electricity Mix) region | J152: =I23 -> 29-Brazilian Mix | K152: Value | L152: Total Emissions (gCO2e) | M152: CI, gCO2e/MJ
B153: Feedstock Production | C153: Sugarcane Farming | I153: Sugarcane Farming
C154: Farming Energy, Btu/metric tonne cane | E154: 95000 | F154: =CONCATENATE('EF Tables'!$U$38," per m.t. cane") -> 8306.89666302434 per m.t. cane | G154: =IFERROR(IF(O$59=0%,0,'EF Tables'!U$39),"0.0") -> 0 | I154: Farming Energy, Btu/metric tonne cane | K154: 95000 | L154: =CONCATENATE('EF Tables'!$U$38," per m.t. cane") -> 8306.89666302434 per m.t. cane | M154: =IFERROR(IF($O$59=100%,0,'EF Tables'!U$40),"0.0") -> -
C155: Fertilizers and Agricultural Chemicals | F155: =CONCATENATE('EF Tables'!$V$38," per m.t.cane") -> 8732.48871025698 per m.t.cane | G155: =IFERROR(IF(O$59=0%,0,'EF Tables'!Q$35),"0.0") -> 0 | I155: Fertilizers and Ag Chemicals | L155: =CONCATENATE('EF Tables'!$V$38," per m.t.cane") -> 8732.48871025698 per m.t.cane | M155: =IFERROR(IF($O$59=100%,0,'EF Tables'!R$35),"0.0") -> 0
C156: N2O in Soil | F156: =CONCATENATE('EF Tables'!$W$38," per m.t.cane") -> 14385.152317146 per m.t.cane | G156: =IFERROR(IF(O$59=0%,0,'EF Tables'!W$39),0) -> 0 | I156: N2O in Soil | L156: =CONCATENATE('EF Tables'!$W$38," per m.t.cane") -> 14385.152317146 per m.t.cane | M156: =IFERROR(IF($O$59=100%,0,'EF Tables'!W$40),"0.0") -> -
C157: N content above and below ground, g N2/tonne cane | E157: 1036 | I157: N content above and below ground, g N2/tonne cane | K157: 1036
C158: Sugarcane Straw Burning in Field | G158: =IFERROR(IF(O$59=0%,0,'EF Tables'!J$42),"0.0") -> 0 | I158: Sugarcane Straw Burning in Field | M158: =IFERROR(IF($O$59=100%,0,'EF Tables'!J$43),"0.0") -> 0
C159: Sugarcane Transport to Mill | I159: Sugarcane Transport to Mill
D160: Cane transport by MDT, miles | E160: ='EF Tables'!D8 -> 2 | G160: =IFERROR(IF(O$59=0%,0,'EF Tables'!H$15),"0.0") -> 0 | J160: Cane transport by MDT, miles | K160: ='EF Tables'!D8 -> 2 | M160: =IFERROR(IF($O$59=100%,0,'EF Tables'!H$16),"0.0") -> 0
D161: Cane transport by HDDT, miles | E161: =IFERROR('EF Tables'!C$8,"0.0") -> 0 | J161: Cane transport by HDDT, miles | K161: =IFERROR('EF Tables'!$C$8,"0.0") -> 0
C162: Filtercake Transport to Cane Farm | I162: Filtercake Transport to Cane Farm
D163: Filtercake transport by HDDT, miles | E163: =IFERROR(SUM(E160:E161),"0.0") -> 2 | G163: =IFERROR(IF(O$59=0%,0,'EF Tables'!E$27),"0.0") -> 0 | J163: Filtercake transport by HDDT, miles | K163: =IFERROR(SUM(K160:K161),"0.0") -> 2 | M163: =IFERROR(IF($O$59=100%,0,'EF Tables'!E$28),"0.0") -> 0
C164: Co-product and Other Credits | I164: Co-product and Other Credits
D165: Net Surplus Cogenerated Electricity Export, kWh/gal | E165: =K94 -> 0 | G165: =IFERROR(IF(O$59=0%,0,'EF Tables'!Q$71),"0.0") -> 0 | J165: Net Surplus Cogenerated Electricity Export, kWh/gal | K165: =K95 -> 0 | M165: =IFERROR(IF($O$59=100%,0,'EF Tables'!R$71),"0.0") -> 0.0
D166: Mechanized Harvesting (%) | E166: =K23 ->  | G166: =IFERROR(IF(O$59=0%,0,-'EF Tables'!J42*Calculator!E166),"0.0") -> 0 | J166: Mechanized Harvesting (%) | K166: =K23 ->  | M166: =IFERROR(IF($O$59=100%,0,-'EF Tables'!J43*Calculator!K23),0) -> 0
B167: Ethanol Production | C167: Sugar Production (gCO2e/wet tonne cane) | E167: ='EF Tables'!C45 -> 4078.483245 | G167: =IFERROR(IF(O$59=0%,0,'EF Tables'!Q44),0) -> 0 | I167: Sugar Production (gCO2e/wet tonne cane) | K167: ='EF Tables'!C45 -> 4078.483245 | M167: =0 -> 0
C168: Ethanol Production | I168: Ethanol Production
C169: Total feedstock used, metric tonnes cane | E169: =$G$59*O59/2 -> 0 | I169: Total feedstock used, metric tonnes cane | K169: =($G$59*(1-O59))/2 -> 0
C170: Total undenatured ethanol, gallons | E170: =F86 -> 0 | I170: Total undenatured ethanol, gallons | K170: =G86 -> 0
C171: Ethanol Yield, gal ethanol / tonne cane | E171: =E95 -> 0 | I171: Ethanol Yield, gal ethanol / tonne cane | K171: =C95 -> 0
C172: Biomass (HHV), tons (See Non-Biogenic Emissions Below) | I172: Biomass (HHV), tons (See Non-Biogenic Emissions Below)
D173: Average Moisture, % | J173: Average Moisture, %
C174: Electricity, kWh/gal ethanol | E174: 0.007142 | I174: Electricity, kWh/gal ethanol | K174: 0.007142
C175: Non-biogenic (CH4/N2O) in Bagasse Combustion | G175: =IF(O$59=0%,0,'EF Tables'!Q60) -> 0 | I175: Non-biogenic (CH4/N2O) in Bagasse Combustion | M175: =IFERROR(IF($O$59=100%,0,'EF Tables'!R60),"0.0") -> 0
C176: Total Plant Energy Consumption, Btu/gal | E176: =E177+E174*3412.96 -> 324.3753603 | I176: Total Plant Energy Consumption, Btu/gal | K176: =K177+K174*3412.96 -> 324.3753603
C177: Residual Oil (10% Lubricant Burned), Btu/gal EtOH | E177: 300 | G177: =IF(O$59=0%,0,'EF Tables'!Q54) -> 0 | I177: Residual Oil (10% Lubricant Burned), Btu/gal EtOH | K177: 300 | M177: =IF(X59=0,0,IF($O$59=100%,0,'EF Tables'!R$54)) -> 0
D178: Chemicals Usage (Lime, g/tonne cane) | E178: 880 | G178: =IFERROR(IF(O$59=0%,0,'EF Tables'!Q55),"0.0") -> 0 | J178: Chemicals Usage (Lime, g/tonne cane) | K178: 880 | M178: =IF(X59=0,0,IF($O$59=100%,0,'EF Tables'!R$55)) -> 0
D179: Chemicals Usage (Yeast, g/gal ethanol) (11) | E179: =D226 -> 3.343276892 | G179: =IFERROR(IF(O$59=0%,0,'EF Tables'!Q56),"0.0") -> 0 | J179: Chemicals Usage (Yeast, g/gal ethanol) (11) | K179: =D226 -> 3.343276892 | M179: =IF(X59=0,0,IF($O$59=100%,0,'EF Tables'!R$56)) -> 0
C180: Ethanol Transport and Distribution | G180: =IF(O$59=0%,0,SUM('EF Tables'!O91:O95)) -> 0 | I180: Ethanol Transport and Distribution | M180: =IF(X59=0,0,IF($O$59<100%,SUM('EF Tables'!P91:P95),0)) -> 0
D181: From Ethanol Plant to Brazil Port | E181: Mode: HDD Truck | F181: =CONCATENATE($C$26," dry gals") -> dry gals | J181: From Ethanol Plant to Brazil Port | K181: Mode: HDD Truck | L181: =CONCATENATE($C$26," dry gals") -> dry gals
D182: Miles | E182: =$C$27/1.609 -> 0 | J182: Miles | K182: =$C$27/1.609 -> 0
D183: From Brazil Port to California Port | E183: Mode: Ocean Tanker | F183: 1 | J183: From Brazil Port to California Port | K183: Mode: Ocean tanker | L183: 1
D184: Miles | E184: =$E$27/1.609 -> 0 | J184: Miles | K184: =$E$27/1.609 -> 0
D185: From California Port to Blending Terminal | E185: Mode: HDD Truck | F185: 1 | J185: From California Port to Blending Terminal | K185: Mode: HDD Truck | L185: 1
D186: Miles | E186: 40 | J186: Miles | K186: 40
D187: California Blending Terminal to Refueling Station | E187: Mode: HDD Truck | F187: 1 | J187: California Blending Terminal to Refueling Station | K187: Mode: HDD Truck | L187: 1
D188: Miles | E188: 50 | J188: Miles | K188: 50
C189: Denaturant, g/MJ | G189: =IF(X59=0,0,IF(O$59=0%,0,'EF Tables'!C124)) -> 0 | I189: Denaturant, g/MJ | M189: =IF(X59=0,0,IF($O$59=100%,0,'EF Tables'!D124)) -> 0
C190: Indirect Land Use, g/MJ | G190: =IF(X59=0,0,IF($O$59>0,11.8,0)) -> 0 | H190: Composite CI (gCO2e/MJ) | I190: Indirect Land Use, g/MJ | M190: =IF(X59=0,0,IF($O$59=100%,0,11.8)) -> 0
C191: Total Well-to-Tank CI, g/MJ | G191: =IF(SUM(G154:G190)>0,SUM(G154:G190),"0.00") -> 0.00 | H191: =IFERROR((G191*E170+M191*K170)/(E170+K170),"0.0") -> 0.0 | I191: Total Well-to-Tank CI, g/MJ | M191: =IFERROR(SUM(M154:M190),0) -> 0
B193: Footnotes:
B194: (1) Filter Cake is assumed to be returned to the fields from where the sugarcane was harvested. Hence it is the weighter average distance of all sugarcane procured from Company-owned and Partnership sugarcane farms, plus 2 miles for distribution on the farms.
B196: (2) The fraction of sugarcane that was mechanically harvested applies to the 9-month or 12-month annual sugarcane harvest cycle.
B198: (3) The Juice-to-Sugar Share is the monthly weighted average fraction of juice that is directed to Table or Finished Sugar production. Preferably, this is measured after the cane has been crushed,
B199: and the juice has been treated for pH and decanted. The juice-to sugar share is then the quantity of juice sent to sugar production or factory / total juice crushed after losses (mass basis).
B201: (4) The level of sucrose in the juice is a proxy for all sugars that can be crystallized or fermented into table sugar and ethanol, respectively. The percentage sucrose in the pre-treated juice is measured
B202: after the pH of the juice has been adjusted, the juice has been decanted, and enters the table sugar or ethanol production process.
B203: This level of sucrose is not the same as the sucrose measured in the juice extracted immediately after the sugarcane crush (as production losses, and some dilution of the juice are expected).
B205: (5) Adjusted Anhydrous and Hydrous Ethanol Production: The anhydrous and hydrous ethanol produced is adjusted by the estimated amount of ethanol produced from externally acquired molasses.
B207: (6) Note: To calculate CI after all data entered, click "Calculate" button. Else, go to the "Data" tab in the Excel Header above, click "Solver", then click "Solve" and accept the dialogue box after it finds solution.
B209: (7) A Site-Specific fraction for Mechanized Harvesting applicable to a cluster of sugarcane farms from where cane is procured is not supported in the Tier 1 Simplified CI Calculator at this time.
B211: (8) The Net Electricity Credited to the pathway is gross amount (Field 5.7) less Transmissions & Distribution losses for Brazil (Field 1.8), and adjusted in proportion to fermentable sugars allocated to juice and molasses production.
B213: (9) Staff assumes that steam leaves the Steam Turbine/Generator as Saturated Steam at 150 psi (10.55 kgf/cm2, 10.2 atm, 358deg F/181deg C)
B214: Enthalpy of Saturated Steam at Exit Conditions = | D214: 2,633.174 Btu/kg or 1,194.4 Btu/lb
B215: Therefore, Energy Remaining in Exit Steam = | D215: =2633.174*1000 -> 2633174 | E215: Btu/metric tonne steam
B216: Useful Energy = (LHV Bagasse - Enthalpy of Exit Steam) x Steam Boiler Efficiency x Power Conversion Efficiency
B218: (10) The Exported Volume of anhydrous ethanol is adjusted to account for temperature correction in California/U.S.A. All liquid fuel amounts reported in the LRT-CBTS must be adjusted to standard temperature conditions adjusted to standard
B219: of 60°F using the relation Vs,e = Va,e x (-0.0006301 x T + 1.0378), where
B220: Vs,e is the standardized volume of ethanol at 60 °F, in gallons; and Va,e is the standardized volume of ethanol at 60 °F, in gallons; and T is the actual temperature of the batch, in °F.
B222: (11) Yeast usage is assumed to parallel the yeast usage for corn-derived ethanol; 0.358 kg/tonne of corn (Wang et al, 2012).*
B223: *Michael Wang et al 2012 Environ. Res. Lett. 7 045905
B224: Therefore, Yeast Usage is 358 g/1000 kg corn or | D224: =1000*2.2046/56 -> 39.36785714 | E224: bushels of corn
B225: Assuming, Corn-based ethanol yields to be | D225: 2.72 | E225: gallons per bushel corn
B226: Yeast Usage = 358 g / (3.3937 bu x 2.72 gal / bu) = | D226: =358/(D224*D225) -> 3.343276892 | E226: g yeast / gallon of ethanol.

Sheet EF Tables
A1: References for Sugarcane Ethanol Pathways
A3: I. | B3: Factors for Sugarcane Transport to Mill
C5: Sugarcane Transport to Mill
C6: HDD (grams/ton-mile cane transported) | D6: MDD (grams/ton-mile cane transported) | E6: HDD (grams/tonne cane transported) | F6: MDD (grams/tonne cane transported) | G6: Total (grams/tonne cane transported) | H6: Total (gCO2e/tonne cane transported)
C8: =Calculator!$F$60 -> 0 | D8: 2
B9: VOC | C9: 0.07469223222 | D9: 0.1345000605 | E9: =$C$8*C9*1000/(2000*0.4536) -> 0 | F9: =$D$8*D9*1000/(2000*0.4536) -> 0.2965168882 | G9: =F9+E9 -> 0.2965168882 | H9: =G9*Fuel_Specs!D58 -> 0.9241443017 | K9: GWP
B10: CO | C10: 0.2597406269 | D10: 0.4674639526 | E10: =$C$8*C10*1000/(2000*0.4536) -> 0 | F10: =$D$8*D10*1000/(2000*0.4536) -> 1.030564269 | G10: =F10+E10 -> 1.030564269 | H10: =G10*Fuel_Specs!D59 -> 1.619458138 | J10: VOC | K10: =Fuel_Specs!D58 -> 3.116666667
B11: CH4 | C11: 0.4637165591 | D11: 0.8370208065 | E11: =$C$8*C11*1000/(2000*0.4536) -> 0 | F11: =$D$8*D11*1000/(2000*0.4536) -> 1.845283965 | G11: =F11+E11 -> 1.845283965 | H11: =G11*25 -> 46.13209912 | J11: CO | K11: =Fuel_Specs!D59 -> 1.571428571
B12: N2O | C12: 0.00104817012 | D12: 0.001891041767 | E12: =$C$8*C12*1000/(2000*0.4536) -> 0 | F12: =$D$8*D12*1000/(2000*0.4536) -> 0.004168963331 | G12: =F12+E12 -> 0.004168963331 | H12: =G12*298 -> 1.242351073 | J12: CH4 | K12: 25
B13: CO2 | C13: 189.0141647 | D13: 341.3601628 | E13: =$C$8*C13*1000/(2000*0.4536) -> 0 | F13: =$D$8*D13*1000/(2000*0.4536) -> 752.5576782 | G13: =F13+E13 -> 752.5576782 | H13: =G13 -> 752.5576782 | J13: N2O | K13: 298
G14: Total CO2e/tonne cane | H14: =SUM(H9:H13) -> 802.4757309
G15: Total CO2e/MJ (mol feedstock) | H15: =IFERROR(Calculator!G91*H14/(Calculator!E95*76330*1055.06/10^6),0) -> 0
A16: II. | B16: Factors for Filtercake Transport to Fields | G16: Total CO2e/MJ (cane juice feedstock) | H16: =IFERROR(H14/(Calculator!C95*76330*1055.06/10^6),0) -> 0
B17: Filtercake Application Rate | C17: Filtercake Transport to the Cane Fields
B18: 2.87 | C18: HDD (grams/ton-mile cane transported) | D18: HDD (grams/tonne cane transported) | E18: Total (gCO2e/tonne cane transported) | F18: HDD (grams/tonne-mile cane transported)
B19: (kg/MT Cane)
C20: =C8+D8 -> 2
B21: VOC | C21: 0.07469223222 | D21: =(B$18/1000)*$C$20*C21*1000/(2000*0.4536) -> 0.0004725897409 | E21: =D21*K10 -> 0.001472904692 | F21: =C21*2204.6/2000 -> 0.08233324758
B22: CO | C22: 0.2597406269 | D22: =(B$18/1000)*$C$20*C22*1000/(2000*0.4536) -> 0.001643420633 | E22: =D22*K11 -> 0.002582518138 | F22: =C22*2204.6/2000 -> 0.286312093
B23: CH4 | C23: 0.4637165591 | D23: =(B$18/1000)*$C$20*C23*1000/(2000*0.4536) -> 0.002934009093 | E23: =D23*25 -> 0.07335022732 | F23: 0.5111547631
B24: N2O | C24: 0.00104817012 | D24: =(B$18/1000)*$C$20*C24*1000/(2000*0.4536) -> 6.631940577e-06 | E24: =D24*298 -> 0.001976318292 | F24: 0.001155397924
B25: CO2 | C25: 189.0141647 | D25: =(B$18/1000)*$C$20*C25*1000/(2000*0.4536) -> 1.195922956 | E25: =D25 -> 1.195922956 | F25: 208.3503137 | H25: "EF"
E26: =SUM(E21:E25) -> 1.275304924 | F26: Total CO2e/tonne cane | H26: =E26+H14 -> 803.7510358 | I26: gCO2e/tonne
E27: =IFERROR(Calculator!$G$91*E26/(Calculator!E$95*76330*1055.06/10^6),0) -> 0 | F27: Total CO2e/MJ (mol feedstock) | H27: =C8+D8 -> 2 | I27: miles total transport
E28: =IFERROR(E26/(Calculator!C$95*76330*1055.06/10^6),0) -> 0 | F28: Total CO2e/MJ (cane juice feedstock) | H28: =H26/H27 -> 401.8755179 | I28: gCO2e/tonne-mile | Q28: AGGREGATION WORK AREA
A29: III. | B29: Factors for Sugarcane Farming, Fertilizer, Herbicide/Insecticide Use, and Sugarcane/Filtercake Transport, and Harvesting. | K29: Applicable Fraction
D30: Sugarcane Farming, Fertilizer, and Herbicide/Insecticide Use (grams/tonne cane) | K30: =Calculator!$K$23 ->  | Q30: Molasses CI (g CO2/MJ) | R30: Juice-to-Ethanol CI (gCO2e/MJ)
C31: Sugarcane Farming | D31: Nitrogen | E31: P2O5 | F31: K2O | G31: CaCO3 | H31: Herbicide | I31: Insecticide | J31: Sugarcane Straw Field Burning | K31: Mechanized Harvesting | L31: Sugarcane Transportation | M31: Sugarcane Filtercake Transportation | N31: Feedstock Total (g/tonne) | T31: Disaggregated Impacts of Sugarcane Agriculture and Farming
B32: Total Emissions: grams/mmBtu of fuel throughput, except as noted | C32: Per tonne | D32: =IF(Calculator!$K$23=80%,'EF Tables'!B161,'EF Tables'!I161) -> 1118.82 | E32: =IF(Calculator!$K$23=80%,'EF Tables'!C161,'EF Tables'!J161) -> 311.0789 | F32: =IF(Calculator!$K$23=80%,'EF Tables'!D161,'EF Tables'!K161) -> 1237.405 | G32: 5200 | H32: 45 | I32: 2.5 | J32: Per tonne | Q32: Sugarcane Farming | U32: Cane Farming Only | V32: Fertilizer, and Herbicide / Insecticide Only Total (g/tonne) | W32: N2O in Soil
B33: VOC | C33: 10.42205447 | D33: =IF(Calculator!$K$23=80%,'EF Tables'!B162,'EF Tables'!I162) -> 7.333651712 | E33: =IF(Calculator!$K$23=80%,'EF Tables'!C162,'EF Tables'!J162) -> 0.08289491099 | F33: =IF(Calculator!$K$23=80%,'EF Tables'!D162,'EF Tables'!K162) -> 0.1164775762 | G33: 0.02160162083 | H33: 0.09064591551 | I33: 0.00601644665 | J33: 1499.4 | K33: =IF(K$30="","0",-J33*$K$30) -> 0 | L33: =G9 -> 0.2965168882 | M33: =D21 -> 0.0004725897409 | N33: =SUM(C33:M33) -> 1517.770332 | Q33: =IFERROR(U39,0) -> - | R33: =IFERROR(U40,0) -> - | T33: VOC | U33: =(C33) -> 10.42205447 | V33: =SUM(D33:I33) -> 7.651288182 | W33: ="-" -> -
B34: CO | C34: 89.4625913 | D34: =IF(Calculator!$K$23=80%,'EF Tables'!B163,'EF Tables'!I163) -> 8.344059219 | E34: =IF(Calculator!$K$23=80%,'EF Tables'!C163,'EF Tables'!J163) -> 0.2862858062 | F34: =IF(Calculator!$K$23=80%,'EF Tables'!D163,'EF Tables'!K163) -> 0.5954107663 | G34: 0.06769147833 | H34: 0.6089002401 | I34: 0.05664447801 | J34: 19706.4 | K34: 0 | L34: =G10 -> 1.030564269 | M34: =D22 -> 0.001643420633 | N34: =SUM(C34:M34) -> 19806.85379 | Q34: Fertilizer, and Herbicide/Insecticide Use | T34: CO | U34: =C34 -> 89.4625913 | V34: =SUM(D34:I34) -> 9.958991987 | W34: ="-" -> -
B35: CH4 | C35: 26.84395546 | D35: =IF(Calculator!$K$23=80%,'EF Tables'!B164,'EF Tables'!I164) -> 31.89850297 | E35: =IF(Calculator!$K$23=80%,'EF Tables'!C164,'EF Tables'!J164) -> 0.4908374077 | F35: =IF(Calculator!$K$23=80%,'EF Tables'!D164,'EF Tables'!K164) -> 1.154266292 | G35: 0.2338472157 | H35: 1.611719043 | I35: 0.1076050532 | J35: 578.34 | K35: 0 | L35: =G11 -> 1.845283965 | M35: =D23 -> 0.002934009093 | N35: =SUM(C35:M35) -> 642.5289514 | Q35: =IFERROR(Calculator!G91*$V$38/(Calculator!F84*76330*1055.06/10^6),0) -> 0 | R35: =IFERROR($V$38/(Calculator!G84*76330*1055.06/10^6),0) -> 0 | T35: CH4 | U35: =C35 -> 26.84395546 | V35: =SUM(D35:I35) -> 35.49677798 | W35: -
B36: N2O | C36: 0.2559536881 | D36: =IF(Calculator!$K$23=80%,'EF Tables'!B165,'EF Tables'!I165) -> 4.533535545 | E36: =IF(Calculator!$K$23=80%,'EF Tables'!C165,'EF Tables'!J165) -> 0.005147556583 | F36: =IF(Calculator!$K$23=80%,'EF Tables'!D165,'EF Tables'!K165) -> 0.01228747942 | G36: 0.0007869973631 | H36: 0.01585784395 | I36: 0.0009128899331 | J36: 14.994 | K36: 0 | L36: =G12 -> 0.004168963331 | M36: =D24 -> 6.631940577e-06 | N36: =(SUM(C36:M36)+D40) -> 68.09498081 | Q36: N2O in Soil | T36: N2O | U36: =C36 -> 0.2559536881 | V36: =SUM(D36:I36) -> 4.568528312 | W36: =D40 -> 48.27232321
B37: CO2 | C37: 7386.457436 | D37: =IF(Calculator!$K$23=80%,'EF Tables'!B166,'EF Tables'!I166) -> 3062.216281 | E37: =IF(Calculator!$K$23=80%,'EF Tables'!C166,'EF Tables'!J166) -> 180.1006003 | F37: =IF(Calculator!$K$23=80%,'EF Tables'!D166,'EF Tables'!K166) -> 436.6293867 | G37: 67.57929507 | H37: 668.1047156 | I37: 42.3337086 | J37: 355469.235 | K37: 0 | L37: =G13 -> 752.5576782 | M37: =D25 -> 1.195922956 | N37: =(SUM(C37:M37)+D38+F38+J38+K38) -> -22646.4025 | Q37: =IFERROR(W39,0) -> - | R37: =IFERROR(W40,0) -> - | T37: CO2 | U37: =C37 -> 7386.457436 | V37: =SUM(D37:I37)+D38+F38 -> 6444.151464 | W37: -
B38: CO2 from Land use change | D38: =IF(Calculator!$K$23=80%,'EF Tables'!B167,'EF Tables'!I167) -> 861.491477 | E38: CO2 from urea use | F38: =IF(Calculator!$K$23=80%,'EF Tables'!D167,'EF Tables'!K167) -> 1125.696 | G38: CO2 from CaCO3 use | J38: -392700 | K38: 0 | L38: CO2 uptaken from the air | Q38: Cane Transport | T38: Total gCO2e/tonne cane: | U38: =U33*K10+U34*K11+U35*25+U36*298+U37 -> 8306.896663 | V38: =V33*K10+V34*K11+V35*25+V36*298+V37 -> 8732.48871 | W38: =W36*298 -> 14385.15232
B39: VOC from bulk terminal | D39: =IF(Calculator!$K$23=80%,'EF Tables'!B168,'EF Tables'!I168) -> 40.90486096 | E39: NO from N fertilizer and above/below ground biomass | Q39: =H15 -> 0 | R39: =H16 -> 0 | T39: gCO2e/MJ (Molasses Feedstock) | U39: =IFERROR(Calculator!G91*U38/(Calculator!$E$95*76330/10^6)/1055.06,"-") -> - | V39: =IFERROR(Calculator!G91*V38/(Calculator!$E$95*76330/10^6)/1055.06,"-") -> - | W39: =IFERROR($D$40*298*Calculator!$G$91/(Calculator!$E$95*76330*1055.06/10^6),"-") -> -
B40: VOC from refueling station | D40: =IF(Calculator!$K$23=80%,'EF Tables'!B169,'EF Tables'!I169) -> 48.27232321 | E40: N2O from N fertilizer and above/below ground biomass | Q40: Filtercake Transport | T40: gCO2e/MJ (Sugacane Juice Feeedstock) | U40: =IFERROR(U38/(Calculator!$C$95*76330/10^6)/1055.06,"-") -> - | V40: =IFERROR(V38/(Calculator!$C$95*76330/10^6)/1055.06,"-") -> - | W40: =IFERROR($D$40*298/(Calculator!$C$95*76330*1055.06/10^6),"-") -> -
I41: Total Straw Bunring gCO2e/tonne cane: | J41: =J33*3.12+J34*1.57+J35*25+J36*298+J37+J38 -> 17313.123 | Q41: =E27 -> 0 | R41: =E28 -> 0
I42: Total gCO2e/MJ (mol feedstock): | J42: =IFERROR(Calculator!G91*J41/(Calculator!E95*76330*1055.06/10^6),0) -> 0 | K42: =IFERROR(-'EF Tables'!J42*Calculator!$K$23,0) -> 0
A43: IV. | B43: Sugar Production Emissions | I43: Total gCO2e/MJ (cane juice feedstock): | J43: =IFERROR($J$41/(Calculator!$C95*76330*1055.06/10^6),0) -> 0 | K43: =IFERROR(-'EF Tables'!J43*Calculator!$K$23,0) -> 0 | Q43: Sugar Production Emissions
B44: Sugar Production (Gopal-Kammen, 2009) | Q44: =IFERROR(($C$45/Calculator!$F$84/Calculator!$AN$54)*Calculator!$G$91,0) -> 0 | R44: 0
B45: gCO2e/wet tonne cane | C45: =3700/(2000*0.4536/1000) -> 4078.483245
A47: V. | B47: Sugarcane Ethanol Production | Q47: Straw Burning Emissions
C48: per gallon | Q48: =IFERROR(J42,0) -> 0 | R48: =IFERROR(J43,0) -> 0
B49: Total Emissions: grams/mmBtu of fuel throughput, except as noted | C49: Lime per gallon of Ethanol {"EtOH")* | D49: Lime emissions per tonne of cane (default yield) | E49: Lime emissions per tonne of cane (Molasses Feedstock) | F49: Lime emissions per tonne of cane (Cane Juice Feedstock) | G49: Yeast Use, gram per gallon of ethanol produced | H49: Residual Oil
B50: VOC | C50: 0.001791952903 | D50: =C50*21.4 -> 0.03834779212 | E50: =IFERROR(D50*Calculator!G$91/Calculator!F$84,"-") -> - | F50: =IFERROR(D50/Calculator!G$84,"-") -> - | G50: 0.003034423012 | H50: 0.0002008659994 | Q50: Mechanized Harvesting Credit
B51: CO | C51: 0.004704100019 | D51: =C51*21.4 -> 0.1006677404 | E51: =IFERROR(D51*Calculator!G$91/Calculator!F$84,"-") -> - | F51: =IFERROR(D51/Calculator!G$84,"-") -> - | G51: 0.01209983631 | H51: 0.001452159753 | Q51: =IFERROR(K42,0) -> 0 | R51: =IFERROR(K43,0) -> 0
B52: CH4 | C52: 0.0308080329 | D52: =C52*21.4 -> 0.6592919042 | E52: =IFERROR(D52*Calculator!G$91/Calculator!F$84,"-") -> - | F52: =IFERROR(D52/Calculator!G$84,"-") -> - | G52: 0.02674664068 | H52: 0.005072556598
B53: N2O | C53: 7.167750971e-05 | D53: =C53*21.4 -> 0.001533898708 | E53: =IFERROR(D53*Calculator!G$91/Calculator!F$84,"-") -> - | F53: =IFERROR(D53/Calculator!G$84,"-") -> - | G53: 0.0002586413013 | H53: 5.741710161e-05 | Q53: Ethanol Production Emissions
B54: CO2 | C54: 36.45369565 | D54: =C54*21.4 -> 780.1090869 | E54: =IFERROR(D54*Calculator!G$91/Calculator!F$84,"-") -> - | F54: =IFERROR(D54/Calculator!G$84,"-") -> - | G54: 6.986920045 | H54: 2.821708994 | P54: Residual Oil | Q54: =IF(Calculator!O$59=0%,0,H58/(76330*1055.06/10^6)) -> 0 | R54: =IF(Calculator!O$59=100%,0,IF(Calculator!X59>0,H58*10^6/(76330*1055.06),"-")) -> -
B55: CO2 from Land use change | P55: Lime Use | Q55: =IF(Calculator!O$59=0%,0,$E$58*10^6/(76330*1055.06)) -> 0 | R55: =IF(Calculator!O$59=100%,0,IF(Calculator!X59>0,F58*10^6/(76330*1055.06),"-")) -> -
B56: VOC from bulk terminal | P56: Yeast Use | Q56: =IF(Calculator!O$59=0%,0,G58*10^6/(76330*1055.06)) -> 0 | R56: =IF(Calculator!O$59=100%,0,IF(Calculator!X59>0,G58*10^6/(76330*1055.06),"-")) -> -
B57: VOC from refueling station
D58: (gCO2e/gal ethanol) | E58: =IFERROR((E50*$K$10+E51*$K$11+E52*25+E53*298+E54),"-") -> - | F58: =IFERROR((F50*$K$10+F51*$K$11+F52*25+F53*298+F54),"-") -> - | G58: =(G50*$K$10+G51*$K$11+G52*25+G53*298+G54) -> 7.761132483 | H58: =(H50*$K$10+H51*$K$11+H52*25+H53*298+H54) -> 2.968541203 | Q58: Non-biogenic GHG emissions from sugarcane bagassee combustion
Q59: Allocated to Cane Molasses | R59: Allocated to Juice-EtOH
B60: Non-biogenic GHG emissions from sugarcane bagassee combustion | D60: (grams/mmBtu fuel burned) | E60: Pollutant Emissions (grams for total cane) | F60: Emissions (gCO2e/total cane throughput) | G60: Allocated to Cane Molasses | H60: Allocated to Juice-EtOH | Q60: =IF(Calculator!O$59=0%,0,G65) -> 0 | R60: =IF(Calculator!O$59=100%,0,H65) -> 0
B61: VOC | D61: 28.30519957 | E61: =D61*(Fuel_Specs!$H$77/10^6)*Fuel_Specs!$C$78*Fuel_Specs!$C$79*Calculator!$G$59 -> 0 | F61: =E61*$K$10 -> 0
B62: CO | D62: 194.0013983 | E62: =D62*(Fuel_Specs!$H$77/10^6)*Fuel_Specs!$C$78*Fuel_Specs!$C$79*Calculator!$G$59 -> 0 | F62: =E62*$K$11 -> 0
B63: CH4 | D63: 31.65 | E63: =D63*(Fuel_Specs!$H$77/10^6)*Fuel_Specs!$C$78*Fuel_Specs!$C$79*Calculator!$G$59 -> 0 | F63: =E63*$K$12 -> 0 | G63: =F$65*Calculator!O$59*Calculator!G91 -> 0 | H63: =F$65*(1-Calculator!O$59) -> 0 | I63: (gCO2e)
B64: N2O | D64: 4.22 | E64: =D64*(Fuel_Specs!$H$77/10^6)*Fuel_Specs!$C$78*Fuel_Specs!$C$79*Calculator!$G$59 -> 0 | F64: =E64*K$13 -> 0 | G64: =Calculator!E94 -> 0 | H64: =Calculator!C$94 -> 0 | I64: (gal Ethanol)
F65: =SUM(F60:F64) -> 0 | G65: =IFERROR(G63/(G64*76330*1055.06/10^6),0) -> 0 | H65: =IFERROR(H63/(H64*76330*1055.06/10^6),0) -> 0 | I65: (gCO2e/MJ)
A70: VI. | B70: Surplus Cogenerated Electricity Export Credit | G70: =Calculator!$I$94 -> 0 | H70: kWh per year | Q70: Electricity Co-Product Credit
C71: Ethanol Volume | D71: Allocated to Feedstock | E71: Energy Export | F71: Energy Export | Q71: =IFERROR(IF(Calculator!I21="Yes",-$G$84,"0.0"),0) -> 0.0 | R71: =IFERROR(IF(Calculator!I21="Yes",-$H$84,"0.0"),0) -> 0.0
B72: Feedstock | C72: (gal) | D72: (kWh/year) | E72: After Allocation | F72: After T&D Losses | G72: (kWh/gal Ethanol) | H72: (Btu/gal Ethanol)
B73: Molasses-to-EtOH | C73: =Calculator!F$86 -> 0 | D73: =(Calculator!$N$59-Calculator!$M$59-Calculator!$J$59)*Calculator!$O$59 -> 0 | E73: =D73*Calculator!$G$91 -> 0 | F73: =E73*(1-Calculator!I$22) -> 0 | G73: =IFERROR(F73/C73,0) -> 0 | H73: =G73*3412.96 -> 0
B74: Juice-to-EtOH | C74: =Calculator!G$86 -> 0 | D74: =(Calculator!$N$59-Calculator!$M$59-Calculator!$J$59)*(1-Calculator!$O$59) -> 0 | E74: =D74 -> 0 | F74: =E74*(1-Calculator!I$22) -> 0 | G74: =IFERROR(F74/C74,0) -> 0 | H74: =G74*3412.96 -> 0
C75: =SUM(C73:C74) -> 0 | D75: =SUM(D73:D74) -> 0 | E75: =SUM(E73:E74) -> 0 | F75: =SUM(F73:F74) -> 0 | G75: =IFERROR(F75/C75,"0.0") -> 0.0 | H75: =IFERROR(G75*3412.96,"0.0") -> 0
B76: Pollutant | C76: Electricity Emissions Displaced | D76: Electricity Emissions Displaced | E76: Electricity Emissions Displaced | F76: Electricity Emissions Displaced | G76: Electricity Emissions Displaced | H76: Electricity Emissions Displaced
C77: g/mmBtu | D77: g/mmBtu * | E77: Mol Feedstock (g/gal) | F77: Juice Feedstock (g/gal) | G77: Mol Feedstock (gCO2e/gal) | H77: Juice Feedstock (gCO2e/gal)
B78: VOC | C78: =J146 -> 8.714369321 | D78: =C78 -> 8.714369321 | E78: =D78*H$73/10^6 -> 0 | F78: =IFERROR(D78*H$74/10^6,0) -> 0 | G78: =E78*3.12 -> 0 | H78: =F78*K10 -> 0
B79: CO | C79: =J147 -> 51.09511428 | D79: =C79 -> 51.09511428 | E79: =D79*H$73/10^6 -> 0 | F79: =IFERROR(D79*H$74/10^6,0) -> 0 | G79: =E79*1.57 -> 0 | H79: =F79*K11 -> 0
B80: CH4 | C80: =J152 -> 136.3764452 | D80: 136.3764452 | E80: =D80*H$73/10^6 -> 0 | F80: =IFERROR(D80*H$74/10^6,0) -> 0 | G80: =E80*25 -> 0 | H80: =F80*25 -> 0
B81: N2O | C81: =J153 -> 2.917434514 | D81: 2.917434514 | E81: =D81*H$73/10^6 -> 0 | F81: =IFERROR(D81*H$74/10^6,0) -> 0 | G81: =E81*298 -> 0 | H81: =F81*298 -> 0
B82: CO2 | C82: =J154 -> 51929.38346 | D82: 51929.38346 | E82: =D82*H$73/10^6 -> 0 | F82: =IFERROR(D82*H$74/10^6,0) -> 0 | G82: =E82 -> 0 | H82: =F82 -> 0
F83: gCO2e/gal | G83: =SUM(G78:G82) -> 0 | H83: =SUM(H78:H82) -> 0
F84: gCO2e/MJ | G84: =G83/(76330*1055.06/10^6) -> 0 | H84: =H83/(76330*1055.06/10^6) -> 0
F85: gCO2e/kWh | G85: =IFERROR(G83/G73,0) -> 0 | H85: =IFERROR(H83/G74,0) -> 0
A86: VII. | B86: Ethanol Transportation and Distribution
C87: Ethanol produced in Brazil, and used in U.S.
B88: Distance Transported (mi) | C88: Pipeline | D88: Rail | E88: Truck | F88: Ocean Tanker | G88: Barge | H88: Pipeline | I88: Rail | J88: Truck | K88: Truck
C89: 0 | D89: 0 | E89: =Calculator!C$27/1.609 -> 0 | F89: =Calculator!E$27/1.609 -> 0 | J89: =Calculator!G26 -> 40 | K89: =Calculator!G27 -> 50
B90: Pollutant | C90: Total Emissions: grams/mmBtu fuel transported | L90: Total Ethanol T&D (g / mmBtu) | M90: gCO2e/mmbtu | O90: Total Ethanol T&D | Q90: Total Ethanol T&D
B91: VOC | C91: =$C$89*C102 -> 0 | D91: =$D$89*D102 -> 0 | E91: =$E$89*E102 -> 0 | F91: =$F$89*F102 -> 0 | J91: =$J$89*J102 -> 0.07786769035 | K91: =$K$89*K102 -> 0.09733461294 | L91: =SUM(C91:K91) -> 0.1752023033 | M91: =L91*K$10 -> 0.5460471786 | O91: =L91*K10/Btu2J -> 0.0005175528656 | P91: =O91 -> 0.0005175528656 | Q91: =IF(Calculator!O$59=0%,"-",M97) -> - | R91: =IF(Calculator!X59=0,"-",IF(Calculator!O59<100%,SUM('EF Tables'!P91:P95),0)) -> -
B92: CO | C92: =$C$89*C103 -> 0 | D92: =$D$89*D103 -> 0 | E92: =$E$89*E103 -> 0 | F92: =$F$89*F103 -> 0 | J92: =$J$89*J103 -> 0.2703215196 | K92: =$K$89*K103 -> 0.3379018996 | L92: =SUM(C92:K92) -> 0.6082234192 | M92: =L92*K$11 -> 0.9557796587 | O92: =L92*K11/Btu2J -> 0.000905904326 | P92: =O92 -> 0.000905904326
B93: CH4 | C93: =$C$89*C104 -> 0 | D93: =$D$89*D104 -> 0 | E93: =$E$89*E104 -> 0 | F93: =$F$89*F104 -> 0 | J93: =$J$89*J104 -> 0.4874094478 | K93: =$K$89*K104 -> 0.6092618097 | L93: =SUM(C93:K93) -> 1.096671257 | M93: =L93*25 -> 27.41678144 | O93: =L93*K12/Btu2J -> 0.02598609489 | P93: =O93 -> 0.02598609489
B94: N2O | C94: =$C$89*C105 -> 0 | D94: =$D$89*D105 -> 0 | E94: =$E$89*E105 -> 0 | F94: =$F$89*F105 -> 0 | J94: =$J$89*J105 -> 0.001099501336 | K94: =$K$89*K105 -> 0.00137437667 | L94: =SUM(C94:K94) -> 0.002473878006 | M94: =L94*298 -> 0.7372156459 | O94: =L94*K13/Btu2J -> 0.0006987456123 | P94: =O94 -> 0.0006987456123
B95: CO2 | C95: =$C$89*C106 -> 0 | D95: =$D$89*D106 -> 0 | E95: =$E$89*E106 -> 0 | F95: =$F$89*F106 -> 0 | J95: =$J$89*J106 -> 198.984499 | K95: =$K$89*K106 -> 248.7306237 | L95: =SUM(C95:K95) -> 447.7151227 | M95: =L95 -> 447.7151227 | O95: =L95/Btu2J -> 0.4243520593 | P95: =O95 -> 0.4243520593
F96: (incl back haul) | M96: =SUM(M91:M95) -> 477.3709466 | N96: gCO2e/mmbtu | O96: =SUM(O91:O95) -> 0.452460357 | P96: =SUM(P91:P95) -> 0.452460357
M97: =M96/1055.06 -> 0.4524585773 | N97: gCO2e/MJ
M98: =M96*76330/(10^6) -> 36.43772435 | N98: gCO2e/gal
B99: Total Emissions: grams/mmBtu fuel transported
B100: Mode: | C100: Pipeline | D100: Rail | E100: Truck | F100: Ocean Tanker | J100: Truck | K100: Truck
B101: Emissions Factor | C101: per mile | D101: per mile | E101: per mile | F101: per mile | J101: per mile | K101: per mile
B102: VOC | C102: 0.0001158390055 | D102: 0.0008080266502 | E102: 0.00194647965 | F102: 0.0009874721369 | J102: 0.001946692259 | K102: 0.001946692259
B103: CO | C103: 0.0007423662589 | D103: 0.002648706692 | E103: 0.006756475444 | F103: 0.002235606471 | J103: 0.006758037991 | K103: 0.006758037991
B104: CH4 | C104: 0.001676020263 | D104: 0.002376199985 | E104: 0.01218042672 | F104: 0.001963471709 | J104: 0.01218523619 | K104: 0.01218523619
B105: N2O | C105: 4.435033016e-05 | D105: 2.967682378e-05 | E105: 2.748735779e-05 | F105: 2.536667604e-05 | J105: 2.74875334e-05 | K105: 2.74875334e-05
B106: CO2 | C106: 0.6236222376 | D106: 1.077277591 | E106: 4.973703643 | F106: 1.078051467 | J106: 4.974612474 | K106: 4.974612474
A109: VIII. | B109: Denatured Ethanol (D-EtOH) Calculator
C111: Molasses-to-Ethanol | D111: Cane Juice-to-Ethanol
B112: Volume % Ethanol in D-EtOH | C112: =1-C113 -> 0.975 | D112: =1-D113 -> 0.975 | E112: v/v EtOH/D-EtOH | I112: 2010 LCFS Reference CI of CARBOB
B113: Volume % of Denaturant (CARBOB and "Other") in D-EtOH | C113: 0.025 | D113: 0.025 | E113: v/v CARBOB/D-EtOH
B114: Energy % Denaturant in D-EtOH | C114: 0.0376 | D114: 0.0376 | E114: MJ/MJ CARBOB/D-EtOH | I114: CARBOB CI | J114: 101.43
B115: 2010 CARBOB CI * | C115: =$J$114-(5.87493397896155*$K$12+3.21914073294522*$K$13)/1055.06 -> 100.3815503 | D115: =$J$114-(5.87493397896155*$K$12+3.21914073294522*$K$13)/1055.06 -> 100.3815503 | E115: g CO2e/MJ CARBOB
B116: Denaturant, g/MJ | C116: =IFERROR((1-$C$114)*(C122+C123)+$C$114*$C$115-(C122+C123),0) -> 3.330666293 | D116: =IFERROR((1-$D$114)*(D122+D123)+$D$114*$D$115-(D122+D123),0) -> 3.330666293 | E116: g CO2e/MJ | H116: changing these values will result in an incorrect
B117: * Without Tailpipe N2O and CH4 emissions impact. | H117: CARFG and Denaturant calculation
B120: CI Summary | C120: (gCO2e/MJ)
A121: IX. | C121: Molasses | D121: Cane Juice
B122: CI (feedstock+fuel) | C122: =SUM(Q32:Q95) -> 0 | D122: =SUM(R32:R95) -> 0
B123: iLUC | C123: 11.8 | D123: 11.8
B124: Denaturant | C124: =C116 -> 3.330666293 | D124: =D116 -> 3.330666293
B125: Total CI (g/MJ) | C125: =SUM(C122:C124) -> 15.13066629 | D125: =SUM(D122:D124) -> 15.13066629
B127: 3) Electric Transmission and Distribution Loss | D127: 0.081 | F127: 10) Calculation of Fuel-Cycle Energy Use, Water Consumption, and Emissions of other regional generation mixes
G128: Brazil | J128: Brazil
F129: Type | G129: Average | J129: Average
B130: 2.2) Electricity Generation Mixes, Combustion Technolgy Shares and Power Plant Energy Conversion Efficiencies for GREET Calculation | F130: Year | G130: 2014 | J130: CA-GREETv2.0
C131: Feedstock Production: Brazillian Mix | D131: Generation Mix for Stationary Applications | F131: Petroleum | G131: =D132 -> 0.0568 | J131: 0.0337
B132: Residual Oil-Fired Power Plants | D132: 0.0568 | F132: NG | G132: =D136 -> 0.1298 | J132: 0.0789
B133: Boiler | F133: Coal | G133: =D141 -> 0.0432 | J133: 0.0187
B134: Internal Combustion Engine | F134: Biomass | G134: =D144 -> 0.0738 | J134: 0.0698
B135: Gas Turbine | F135: Nuclear | G135: =D147 -> 0.0248 | J135: 0.026
B136: Natural Gas-Fired Power Plants | D136: 0.1298 | F136: Hydro | G136: =D148-G137 -> 0.6633 | J136: 0.7645
B137: Boiler | F137: Others | G137: 0.0083 | J137: 0.0083
B138: Simple-cycle gas turbine | F138: T&D Loss | G138: 0.081 | J138: 0.081
B139: Combined-cycle gas turbine | F139: Btu or Gallons or Grams per mmBtu of Electricity Available at User Sites*
B140: Internal Combustion Engine | F140: Total energy | G140: 1717630.969
B141: Coal-Fired Power Plants | D141: 0.0432 | F141: Fossil fuels | G141: 695566.737
B142: Boiler | F142: Coal | G142: 135973.2615
B143: IGCC | F143: Natural gas | G143: 356645.0468
B144: Biomass Power Plants | D144: 0.0738 | F144: Petroleum | G144: 202948.4286
B145: Boiler | F145: Water consumption | G145: 946.2397455 | H145: Feedstock | I145: Fuel | J145: Total
B146: IGCC | F146: VOC | H146: 5.634073845 | I146: 3.080295476 | J146: =I146+H146 -> 8.714369321
B147: Nuclear Power Plants | D147: 0.0248 | F147: CO | H147: 14.21777447 | I147: 36.87733981 | J147: =I147+H147 -> 51.09511428
B148: Other Power Plants (hydro, wind, geothermal, etc.) | D148: 0.6716
B149: Hydroelectric
B150: Geothermal
B151: Wind
B152: Solar PV | F152: CH4 | H152: 132.1734966 | I152: 4.20294858 | J152: =I152+H152 -> 136.3764452
B153: Others (Biogenic Waste, Pumped Storage, etc.) | F153: N2O | H153: 0.4892193549 | I153: 2.428215159 | J153: =I153+H153 -> 2.917434514
C154: Sum: | D154: =SUM(D132:D153) -> 1 | F154: CO2 | H154: 4477.182256 | I154: 47452.2012 | J154: =I154+H154 -> 51929.38346
F155: * From CA-GREET3.0 ("Electric" #9) Fuel-Cycle Energy Use, Water Consumption, and Emissions of Electric Generation: Btu or Gallons or Grams per mmBtu of Electricity Available at User Sites (wall outlets))
B158: Agricultural Inputs for 80% Mechanization* | D158: 995.8 | E158: N Fertilizer based upon 0.53% (N in straw Content) | I158: Agricultural Inputs for 65% Mechanization | K158: =800+318.82 -> 1118.82 | L158: N Fertilizer based upon 0.53% (N in straw Content)
B159: Sugarcane Farming, Fertilizer, and Herbicide/Insecticide Use (grams/tonne cane)* | I159: Sugarcane Farming, Fertilizer, and Herbicide/Insecticide Use (grams/tonne cane)*
B160: Nitrogen** | C160: P2O5 | D160: K2O | E160: CaCO3 | F160: Herbicide | G160: Insecticide | H160: Pollutant | I160: Nitrogen** | J160: P2O5 | K160: K2O | L160: CaCO3 | M160: Herbicide | N160: Insecticide
B161: 995.8 | C161: 317.3264 | D161: 1371.28 | E161: 5200 | F161: 45 | G161: 2.5 | I161: 1118.82 | J161: 311.0789 | K161: 1237.405 | L161: 5200 | M161: 45 | N161: 2.5
B162: 6.527498733 | C162: 0.08455971678 | D162: 0.1290792996 | E162: 0.0197669877 | F162: 0.09079378648 | G162: 0.006103890925 | H162: VOC | I162: 7.333651712 | J162: 0.08289491099 | K162: 0.1164775762 | L162: 0.0197669877 | M162: 0.09079378648 | N162: 0.006103890925
B163: 7.426837014 | C163: 0.2920353783 | D163: 0.6598283308 | E163: 0.06325330669 | F163: 0.6041615817 | G163: 0.05641143824 | H163: CO | I163: 8.344059219 | J163: 0.2862858062 | K163: 0.5954107663 | L163: 0.06325330669 | M163: 0.6041615817 | N163: 0.05641143824
B164: 30.27172475 | C164: 0.500695057 | D164: 1.279146505 | E164: 0.1910432068 | F164: 1.600308464 | G164: 0.1071699861 | H164: CH4 | I164: 31.89850297 | J164: 0.4908374077 | K164: 1.154266292 | L164: 0.1910432068 | M164: 1.600308464 | N164: 0.1071699861
B165: 4.035781674 | C165: 0.005250936657 | D165: 0.01361686334 | E165: 0.0006969499389 | F165: 0.01579004751 | G165: 0.0009098209448 | H165: N2O | I165: 4.533535545 | J165: 0.005147556583 | K165: 0.01228747942 | L165: 0.0006969499389 | M165: 0.01579004751 | N165: 0.0009098209448
B166: 2725.601607 | C166: 183.71762 | D166: 483.868374 | E166: 47.37950203 | F166: 664.7850406 | G166: 42.1353311 | H166: CO2 | I166: 3062.216281 | J166: 180.1006003 | K166: 436.6293867 | L166: 47.37950203 | M166: 664.7850406 | N166: 42.1353311
B167: 766.791872 | C167: CO2 from urea use | D167: 1125.696 | E167: CO2 from CaCO3 use | I167: 861.491477 | J167: CO2 from urea use | K167: 1125.696 | L167: CO2 from CaCO3 use
B168: 38.02211146 | C168: NO from N fertilizer and above/below ground biomass | I168: 40.90486096 | J168: NO from N fertilizer and above/below ground biomass
B169: 44.80099546 | C169: N2O from N fertilizer and above/below ground biomass | I169: 48.27232321 | J169: N2O from N fertilizer and above/below ground biomass
B170: * Per CA-GREET3.0 | I170: * Per CA-GREET3.0
B171: ** Nitrogen amount reflects 800 g/m.t. cane applied + 195.83 g / m.t. sugarcane for Nitrogen lost in burnt straw at 80% mechanization level. | I171: ** Nitrogen amount reflects 800 g/m.t. cane applied + 318.82 g / m.t. sugarcane for Nitrogen lost in burnt straw at 65% mechanization level.
B172: The supplemental Nitrogen needed also reflects 75% fraction of sugarcane straw left in unburnt fields (25% Harvested). | I172: The supplemental Nitrogen needed also reflects 75% fraction of sugarcane straw left in unburnt fields (25% Harvested).
B175: Options for Mechanized Harvesting
B176: Standard for Sao Paulo State | C176: Standard for Non-Sao Paulo States
B177: 0.8 | C177: 0.65
B179: Return of Nitrogen to Soil via Filtercake and Vinasse Application
C180: Filtercake | D180: Vinasse
B181: Application (kg dry filtercake or L vinasse/MT sugarcane) | C181: =5*30%/6/87.1*1000 -> 2.870264064 | D181: 570
B182: N content (g N/kg dry filtercake or L vinasse) | C182: 12.5 | D182: 0.36
B183: N in soil from filtercake and vinasse (g N/MT sugarcane) | C183: 35.8783008 | D183: 205.2
B184: Moisture content (wt%) | C184: 0.65
B185: See CA-GREET3.0, "EtOH" Worksheet (Row 111-115).

Sheet EF General
A2: Generalized Emissions Factors (EF General) for CI Determination
A5: Factor 1 - Sugarcane Farming Impacts | G5: gCO2e/MJ
A6: Sugarcane Farming | G6: =IF(Calculator!O59=0,Calculator!M154,Calculator!G154) -> -
A7: Fertilizers | G7: =IF(Calculator!O$59=0,Calculator!M155,Calculator!G155) -> 0
A8: N2O in Soil | G8: =IF(Calculator!O$59=0,Calculator!M156,Calculator!G156) -> -
F9: Total: | G9: =SUM(G6:G8) -> 0 | H9: gCO2e
H10: =10^6 -> 1000000 | I10: J | J10: Btu
H11: 1055.06 | I11: J | J11: 76330 | K11: Btu
K12: gal
J14: For Molasses Feedstock = Sugarcane Farming Impacts (gCO2e/gal) x Yield of Ethanol (gal/m.t. cane) / Mass Allocation Ratio
A15: Factor 1 - Sugarcane Farming Impacts | F15: = | G15: =G9*H11*J11/H10 -> 0 | H15: gCO2e | J15: =G15 -> 0 | K15: =H15 -> gCO2e | L15: =Calculator!F$84 -> 0 | M15: gal | N15: = | O15: =J15*L15 -> 0 | P15: gCO2e | Q15: =Calculator!G$59 -> 0 | R15: m.t. cane | S15: =Calculator!O59 -> 0 | T15: Juice Share
H16: gal EtOH | K16: =H16 -> gal EtOH | M16: mt cane | P16: mt cane
I18: = | J18: =O15*Q15*S15 -> 0 | K18: gCO2e
A21: Factor 2 - Sugarcane Straw Burning | J21: For Sugarcane Juice Feedstock = Sugarcane Farming Impacts (gCO2e/gal) x Yield of Ethanol
J22: =G15 -> 0 | K22: gCO2e | L22: =Calculator!G$84 -> 0 | M22: gal | N22: = | O22: =J22*L22 -> 0 | P22: gCO2e | Q22: =Calculator!G$59 -> 0 | R22: m.t. cane
C23: g/tonne cane | D23: gCO2e/mt cane | K23: gal EtOH | M23: mt cane | P23: mt cane | S23: =1-S15 -> 1 | T23: Juice Share
A24: VOC | C24: 1499.4 | D24: =C24*'EF Tables'!K$10 -> 4673.13
A25: CO | C25: 19706.4 | D25: =C25*'EF Tables'!K$11 -> 30967.2 | I25: = | J25: =O22*Q22*S23 -> 0 | K25: gCO2e
A26: NOx
A27: PM10
A28: PM2.5 | I28: = | J28: =J25+J18 -> 0 | K28: gCO2e | N28: cane for juice | O28: cane for mol
A29: SOx | L29: =Calculator!G59 -> 0 | M29: mt cane | N29: =1-Calculator!O59 -> 1 | O29: =Calculator!O59*Calculator!G91 -> 0
A30: BC
A31: OC | I31: = | J31: =IFERROR(J28/(L29*(N29+O29)),0) -> 0 | K31: gCO2e/m.t. cane
A32: CH4 | C32: 578.34 | D32: =C32*25 -> 14458.5
A33: N2O | C33: 14.994 | D33: =C33*298 -> 4468.212 | G33: Net Sugarcane Straw Burning Impacts (Juice Feedstock) = (gCO2e/m.t. cane) x (1 - Mech %)
A34: CO2 | C34: 355469.235 | D34: =C34 -> 355469.235 | G34: Net Sugarcane Straw Burning Impacts (Juice Feedstock) = 17,313.1 x (1 - Mech %) gCO2e/m.t. cane
A35: Misc. CO2 | C35: -392700 | D35: =C35 -> -392700
G36: Net Sugarcane Straw Burning Impacts (Mol Feedstock) = (gCO2e/m.t. cane) x (1 - Mech %) x M.A.R.
D37: =SUM(D24:D35) -> 17336.277 | E37: gCO2e/mt cane | G37: Net Sugarcane Straw Burning Impacts (Mol Feedstock) = 17,313.1 x (1 - Mech %) / M.A.R. gCO2e/m.t. cane
A39: Factor 3 - Sugarcane & Filtercake Transport
B41: =Calculator!$F$60 -> 0 | C41: "X" miles Cane transport to Mill | E41: 2.870264064 | F41: Yield kg dry filtercake/MT sugarcane
D42: 2 miles cane | E42: 2 miles Filtercake | F42: "X" Miles Filtercake
B43: hddt | C43: mddt | D43: mddt | E43: hddt | F43: hddt
B44: g/tonne-mile | C44: g/tonne-mile | D44: g/tonne cane | E44: g/tonne cane | F44: g/tonne-mile
A45: VOC | B45: ='EF Tables'!F21 -> 0.08233324758 | C45: ='EF Tables'!F9/2 -> 0.1482584441 | D45: =2*C45 -> 0.2965168882 | E45: =2*B45*(E$41/1000) -> 0.0004726363236 | F45: =B45 -> 0.08233324758
A46: CO | B46: ='EF Tables'!F22 -> 0.286312093 | C46: ='EF Tables'!F10/2 -> 0.5152821347 | D46: =2*C46 -> 1.030564269 | E46: =2*B46*(E$41/1000) -> 0.001643582623 | F46: =B46 -> 0.286312093
A47: CH4 | B47: ='EF Tables'!F23 -> 0.5111547631 | C47: ='EF Tables'!F11/2 -> 0.9226419825 | D47: 1.845283965 | E47: 0.002934298295 | F47: =B47 -> 0.5111547631
A48: N2O | B48: ='EF Tables'!F24 -> 0.001155397924 | C48: ='EF Tables'!F12/2 -> 0.002084481666 | D48: 0.004168963331 | E48: 6.632594281e-06 | F48: =B48 -> 0.001155397924
A49: CO2 | B49: ='EF Tables'!F25 -> 208.3503137 | C49: ='EF Tables'!F13/2 -> 376.2788391 | D49: 752.5576782 | E49: 1.196040837 | F49: =B49 -> 208.3503137
A50: CO2e | B50: =B45*3.12+B46*1.57+B47*25+B48*298+B49 -> 222.1798811 | C50: =C45*3.12+C46*1.57+C47*25+C48*298+C49 -> 401.2376235 | D50: =D45*3.12+D46*1.57+D47*25+D48*298+D49 -> 802.475247 | E50: =E45*3.12+E46*1.57+E47*25+E48*298+E49 -> 1.275429857 | F50: =F45*3.12+F46*1.57+F47*25+F48*298+F49 -> 222.1798811
A52: Sugarcane & Filtercake Transport | C52: = ("X" miles * 307.47) + 665.78 | F52: =(B50*B41)+(E$41/1000)*(B41*B50)+D50+E50 -> 803.7506769 | G52: gCO2/tonne cane
A54: Sugarcane & Filtercake Transport | C54: = ("X" miles * 307.47) + 665.78 (Juice Feedstock)
A55: Sugarcane & Filtercake Transport | C55: = (("X" miles * 307.47) + 665.78 ) * M.A.R. (Molasses Feedstock)
A58: Factor 4 - Electricity Co-Product Credit
A60: For Cane Juice Feedstock | M60: Conversely,
A61: ='EF Tables'!H84 -> 0 | B61: gCO2e/MJ Ethanol | D61: = | E61: =ABS(A61) -> 0 | F61: gCO2e
F62: 1000000 | G62: J | H62: Btu | I62: 1 gal | J62: 1 m.t.cane | M62: =E61*F63*I63/F62 -> 0 | N62: g CO2e | O62: =Calculator!G86 -> 0 | P62: gal
F63: 1055.06 | G63: J | H63: Btu | I63: 76330 | J63: =Calculator!$G$84 -> 0 | K63: gal | N63: gal | P63: yr
M64: =M62*O62 -> 0 | N64: g CO2e | O64: allocated to juice-to-ethanol
N65: yr
A66: Electricity Co-Product Credit: | D66: = | E66: =-E61*F63*I63*J63/F62 -> 0 | F66: gCO2e | G66: for | H66: =Calculator!K$95 -> 0 | I66: kWh | J66: Electricity Displaced
F67: m.t. cane | I67: gal | M67: =IFERROR((M64/(1-Calculator!O$59))-M64,0) -> 0 | N67: g CO2e | O67: allocated to sugar production
N68: yr
M69: =M67*Calculator!G91 -> 0
A70: For Molasses Feedstock | M70: =M67-M69 -> 0
A71: ='EF Tables'!G84 -> 0 | B71: gCO2e/MJ Ethanol | D71: = | E71: =ABS(A71) -> 0 | F71: gCO2e | M71: =M70+M69+M64 -> 0 | N71: g CO2e | O71: alloated to all production
F72: 1000000 | G72: J | H72: Btu | I72: 1 gal | J72: 1 m.t.cane | N72: yr
F73: 1055.06 | G73: J | H73: Btu | I73: 76330 | J73: =Calculator!F$84 -> 0 | K73: gal | M73: =Calculator!I94 -> 0 | N73: KWh per year
G75: 0
A76: Electricity Co-Product Credit: | D76: = | E76: =-E71*F73*I73*J73/F72 -> 0 | F76: gCO2e | G76: for | H76: =Calculator!K$94 -> 0 | I76: kWh | J76: Electricity Displaced
F77: m.t.cane | I77: gal
A82: Factor 5 - Sugar Production Emissions for Molasses Feedstock
A83: Sugar Production Emissions | F83: ='EF Tables'!C45 -> 4078.483245 | G83: gCO2e/m.t. cane
A84: Mass Allocation Ratio | F84: M.A.R.
A85: Sugar Production Emissions | E85: = 4078.5 x M.T. Cane for Sugar Production | H85: gCO2e
A86: Sugar Production Emissions Applicable to Molasses | E86: = 4078.5 x M.T. of Cane for Sugar Production x M.A.R. | H86: gCO2e
A89: Factor 6 - Ethanol Production
C90: =Calculator!M177+Calculator!M175+Calculator!M178+Calculator!M179 -> 0 | D90: gCO2e/MJ Ethanol | E90: Juice
C92: =IF(Calculator!O59=0,'EF General'!C90,Calculator!G177+Calculator!G175+Calculator!G178+Calculator!G179) -> 0 | D92: gCO2e | H92: = | I92: =C92*D94*G94/D93 -> 0 | J92: gCO2e
D93: 1000000 | E93: J | F93: Btu | G93: 1 gal | J93: gal Ethanol
D94: 1055.06 | E94: J | F94: Btu | G94: 76330
B97: For Molasses Feedstock
B98: = | C98: =I92 -> 0 | D98: gCO2e | E98: =Calculator!F84 -> 0 | F98: gal Ethanol | G98: = | H98: =I92 -> 0 | I98: gCO2e | J98: =E98 -> 0 | K98: gal Ethanol | L98: = | M98: =IFERROR(H98*J98/J99,0) -> 0 | N98: gCO2e
D99: gal Ethanol | E99: M.A.R | F99: m.t. cane | I99: gal Ethanol | J99: =Calculator!G91 -> 0 | K99: m.t. cane | N99: m.t. cane
B101: For Cane Juice Feedstock
B102: = | C102: =I92 -> 0 | D102: gCO2e | E102: =Calculator!G84 -> 0 | F102: gal Ethanol | G102: = | H102: =C102 -> 0 | I102: gCO2e | J102: =E102 -> 0 | K102: gal Ethanol | L102: = | M102: =H102*J102 -> 0 | N102: gCO2e
D103: gal Ethanol | F103: m.t. cane | I103: gal Ethanol | K103: m.t. cane | N103: m.t. cane
A106: Factor 7 - Denaturant Emissions | F106: ='EF Tables'!C124 -> 3.330666293 | G106: gCO2e | J106: =Calculator!F84 -> 0 | K106: gal | L106: =Calculator!G$59 -> 0 | M106: mt cane | N106: =Calculator!G$91 -> 0 | O106: =Calculator!O$59 -> 0
A107: Denaturant Emissions Impact = 3.30 - CI (feedstk+fuel) x 0.0376 | F107: 1000000 | G107: J | H107: Btu | I107: gal | K107: m.t. cane | M107: yr
F108: 1055.06 | G108: J | H108: Btu | I108: 76330
F110: =F106*J106*L106*N106*O106*1055.06*76330/1000000 -> 0 | G110: gCO2e
G111: yr
D113: feedstock | E113: gal | F113: MJ | G113: CI | H113: gCO2e | I113: EF gCO2e/gal | K113: Demo CI
D115: molasses | E115: =Calculator!F86 -> 0 | F115: =E115*76330*1055.06/10^6 -> 0 | G115: ='EF Tables'!C124 -> 3.330666293 | H115: =G115*F115 -> 0 | I115: =IFERROR(H115/E115,0) -> 0 | J115: =IFERROR(I115/I117,0) -> 0 | K115: =IFERROR(K117*J115,0) -> 0
D116: juice | E116: =Calculator!G86 -> 0 | F116: =E116*76330*1055.06/10^6 -> 0 | G116: ='EF Tables'!D124 -> 3.330666293 | H116: =G116*F116 -> 0 | I116: =IFERROR(H116/E116,0) -> 0 | J116: =IFERROR(I116/I117,0) -> 0 | K116: =IFERROR(K117*J116,0) -> 0
E117: =SUM(E115:E116) -> 0 | F117: =SUM(F115:F116) -> 0 | H117: =SUM(H115:H116) -> 0 | I117: =IFERROR(H117/E117,0) -> 0 | J117: EF | K117: =I117/(76330*1055.06/10^6) -> 0
I118: =IFERROR((I115*E115+I116*E116)/E117,0) -> 0 | J118: weighted avg
A121: Factor 8 - ILUC
A123: ILUC | B123: =11.8 -> 11.8 | C123: gCO2e
C124: MJ
A126: ILUC = | B126: =B123 -> 11.8 | C126: gCO2e | G126: = | H126: =B126*E128*C128/C127 -> 950.2862116 | I126: gCO2e | J126: =H126*Calculator!$F$86 -> 0 | K126: gCO2e mol feedstock
C127: 1000000 | D127: J | E127: Btu | F127: 1 gal EtOH | I127: gal Ethanol | J127: =H126*Calculator!$G$86 -> 0 | K127: gCO2e juice feedstock
C128: 1055.06 | D128: J | E128: 76330 | F128: Btu | J128: =SUM(J126:J127) -> 0 | K128: gCO2e
A130: ILUC juice | B130: = | C130: =H126 -> 950.2862116 | D130: gCO2e | E130: =Calculator!G84 -> 0 | F130: gal Ethanol
D131: gal Ethanol | F131: m.t.cane | G131: = | H131: =C130*E130 -> 0 | I131: gCO2e | J131: =H131*Calculator!G$59*(1-Calculator!E$86)*(1-Calculator!O$59) -> 0 | K131: gCO2e
I132: m.t.cane
A135: ILUC mol | B135: = | C135: =H126 -> 950.2862116 | D135: gCO2e | E135: =Calculator!F84 -> 0 | F135: gal Ethanol
D136: gal Ethanol | F136: m.t.cane | G136: = | H136: =C135*E135 -> 0 | I136: gCO2e | J136: =H$136*Calculator!G$59*Calculator!O$59 -> 0 | K136: gCO2e
I137: m.t.cane
A142: Factor 9 - Ethanol Transport & Distribution
A144: For Cane Juice Feedstock | C144: =Calculator!M$180 -> 0 | D144: gCO2
D145: MJ
B147: = | C147: =C144 -> 0 | D147: gCO2 | G147: = | H147: =C147*F149*C149/C148 -> 0 | I147: gCO2e | J147: =Calculator!G$84 -> 0 | K147: gal | L147: = | M147: =J147*H147 -> 0 | N147: gCO2e
C148: 1000000 | D148: J | E148: Btu | F148: gal | I148: gal EtOH | K148: mt cane | N148: mt cane
C149: 1055.06 | D149: J | E149: Btu | F149: 76330
A151: For Cane Molasses Feedstock | C151: =Calculator!G180 -> 0 | D151: gCO2
D152: MJ
B154: = | C154: =C151 -> 0 | D154: gCO2 | G154: = | H154: =C154*F156*C156/C155 -> 0 | I154: gCO2e | J154: =Calculator!F$84 -> 0 | K154: gal | L154: = | M154: =J154*H154 -> 0 | N154: gCO2e
C155: 1000000 | D155: J | E155: Btu | F155: gal | I155: gal EtOH | K155: mt cane | N155: mt cane
C156: 1055.06 | D156: J | E156: Btu | F156: 76330
A161: VII. | B161: EF for Ethanol Transportation and Distribution | K161: in Brazil, miles | L161: in California, miles
B162: Mode & Distance Transported (mi) | C162: Pipeline: | D162: 0 | E162: Rail: | F162: 0 | G162: Ocean Tanker: | H162: =Calculator!E$27/1.609 -> 0 | I162: Total Truck Transport in Brazil: | J162: Total Truck Transport in California: | K162: =Calculator!C27/1.609 -> 0 | L162: =Calculator!G26+Calculator!G27 -> 90
B163: Pollutant | C163: g per mmBtu-mile | D163: gCO2e per mmBtu-mi | E163: g per mmBtu-mile | F163: gCO2e per mmBtu-mi | G163: g per mmBtu-mile | H163: gCO2e per mmBtu-mi | I163: g per mmBtu-mile | J163: g per mmBtu-mile | K163: gCO2e/mmBtu-mi | L163: gCO2e/mmBtu-mi
B164: VOC | C164: ='EF Tables'!C102 -> 0.0001158390055 | D164: =C164*'EF Tables'!K$10 -> 0.0003610315672 | E164: ='EF Tables'!D102 -> 0.0008080266502 | F164: =E164*'EF Tables'!K$10 -> 0.002518349727 | G164: ='EF Tables'!F102 -> 0.0009874721369 | H164: =G164*'EF Tables'!K$10 -> 0.003077621493 | I164: ='EF Tables'!E102 -> 0.00194647965 | J164: ='EF Tables'!K102 -> 0.001946692259 | K164: =I164*'EF Tables'!K$10 -> 0.006066528243 | L164: =J164*'EF Tables'!K$10 -> 0.006067190873
B165: CO | C165: ='EF Tables'!C103 -> 0.0007423662589 | D165: =C165*'EF Tables'!K$11 -> 0.00116657555 | E165: ='EF Tables'!D103 -> 0.002648706692 | F165: =E165*'EF Tables'!K$11 -> 0.004162253373 | G165: ='EF Tables'!F103 -> 0.002235606471 | H165: =G165*'EF Tables'!K$11 -> 0.003513095883 | I165: ='EF Tables'!E103 -> 0.006756475444 | J165: ='EF Tables'!K103 -> 0.006758037991 | K165: =I165*'EF Tables'!K$11 -> 0.01061731855 | L165: =J165*'EF Tables'!K$11 -> 0.01061977399
B166: CH4 | C166: ='EF Tables'!C104 -> 0.001676020263 | D166: =C166*25 -> 0.04190050657 | E166: ='EF Tables'!D104 -> 0.002376199985 | F166: =E166*25 -> 0.05940499963 | G166: ='EF Tables'!F104 -> 0.001963471709 | H166: =G166*25 -> 0.04908679272 | I166: ='EF Tables'!E104 -> 0.01218042672 | J166: ='EF Tables'!K104 -> 0.01218523619 | K166: =I166*25 -> 0.3045106679 | L166: =J166*25 -> 0.3046309049
B167: N2O | C167: ='EF Tables'!C105 -> 4.435033016e-05 | D167: =C167*298 -> 0.01321639839 | E167: ='EF Tables'!D105 -> 2.967682378e-05 | F167: =E167*298 -> 0.008843693486 | G167: ='EF Tables'!F105 -> 2.536667604e-05 | H167: =G167*298 -> 0.007559269461 | I167: ='EF Tables'!E105 -> 2.748735779e-05 | J167: ='EF Tables'!K105 -> 2.74875334e-05 | K167: =I167*298 -> 0.008191232622 | L167: =J167*298 -> 0.008191284954
B168: CO2 | C168: ='EF Tables'!C106 -> 0.6236222376 | D168: =C168 -> 0.6236222376 | E168: ='EF Tables'!D106 -> 1.077277591 | F168: =E168 -> 1.077277591 | G168: ='EF Tables'!F106 -> 1.078051467 | H168: =G168 -> 1.078051467 | I168: ='EF Tables'!E106 -> 4.973703643 | J168: ='EF Tables'!K106 -> 4.974612474 | K168: =I168 -> 4.973703643 | L168: =J168 -> 4.974612474
C169: total gCO2e per mmBtu-mi | D169: =SUM(D164:D168) -> 0.6802667497 | E169: total gCO2e per mmBtu-mi | F169: =SUM(F164:F168) -> 1.152206887 | G169: total gCO2e per mmBtu-mi | H169: =SUM(H164:H168) -> 1.141288246 | I169: total gCO2e per mmBtu-mi | J169: total gCO2e per mmBtu-mi | K169: =SUM(K164:K168) -> 5.303089391 | L169: =SUM(L164:L168) -> 5.304121629
C170: gCO2e/gal-mi | D170: =D169*76330/(10^6) -> 0.05192476101 | E170: gCO2e/gal-mi | F170: =F169*76330/(10^6) -> 0.0879479517 | G170: gCO2e/gal-mi | H170: =H169*76330/(10^6) -> 0.08711453183 | I170: gCO2e/gal-mi | J170: gCO2e/gal-mi | K170: =K169*76330/(10^6) -> 0.4047848132 | L170: =L169*76330/(10^6) -> 0.4048636039
C171: gCO2e/gal | D171: =D170*D162 -> 0 | E171: gCO2e/gal | F171: =F170*F162 -> 0 | G171: gCO2e/gal | H171: =H170*H162 -> 0 | I171: gCO2e/gal | J171: gCO2e/gal | K171: =K170*K162 -> 0 | L171: =L170*L162 -> 36.43772435
C172: gCO2e/MJ | D172: =D171*10^6/(76330*1055.06) -> 0 | E172: gCO2e/MJ | F172: =F171*10^6/(76330*1055.06) -> 0 | G172: gCO2e/MJ | H172: =H171*10^6/(76330*1055.06) -> 0 | I172: gCO2e/MJ | J172: gCO2e/MJ | K172: =K171*10^6/(76330*1055.06) -> 0 | L172: =L171*10^6/(76330*1055.06) -> 0.4524585773
L173: =H172+F172+D172+K172+L172 -> 0.4524585773

Sheet Fuel_Specs
B2: General References for Sugarcane-based Ethanol Pathways
B4: Feedstock Type | C4: Sugarcane Juice | D4: Molasses | E4: Sources
B5: Juice-to-Sugar share, % | D5: User Defined
B6: Sucrose in Sugarcane Juice (Entering Process) | D6: User Defined
B7: a. Farming Energy
B8: Total Farming Energy | C8: 95,000 Btu/tonne | E8: CA-GREET 3.0
B9: Diesel fuel | C9: 36385
B10: Gasoline | C10: 11685
B11: Natural gas | C11: 20425
B12: Liquefied petroleum gas | C12: 17860
B13: Electricity | C13: 8550
B14: b. Fertilizer Use | C14: 65% Mechanization | D14: 80% Mechanization
B15: Nitrogen | C15: 1118.82 | D15: 996 | E15: CA-GREET 3.0
B16: P2O5 | C16: 311.1 | D16: 317.3 | E16: (g / tonne)
B17: K2O | C17: 1237.4 | D17: 1371.3 | E17: (Revised per 15-day Changes; N% in Sugarcane Straw revision to 0.53%)
B18: CaCO3 | C18: 5200 | D18: 5200
B19: Herbicide | C19: 45 | D19: 45
B20: Pesticide | C20: 2.5 | D20: 2.5
B21: c. N2O in soil
B22: N in N2O as % of N in N fertilizer | C22: 0.01325 | E22: CA-GREET 3.0
B23: N in N2O as % of N in biomass | C23: 0.01225 | E23: CA-GREET 3.0
B24: d. Cane Transport
B25: Raw feedstock to collection point by MDT, mi | C25: 2 | E25: CA-GREET 3.0
B26: To Ethanol plant by HDDT mi | C26: User Defined
B27: e. Straw Burning
B28: Straw yield: dry tonne/wet tonne of sugarcane | C28: 0.2142 | E28: CA-GREET 3.0
B29: Moisture in straw | C29: 0.15 | E29: CA-GREET 3.0
B30: Burn Field, % | C30: 0.9 | E30: CA-GREET 3.0
B31: f. Mechanized Harvesting Credit
B32: Mechanized field, % | C32: Standard (Sao Paulo State) at 80%, or | E32: CA-GREET 3.0
C33: (Non-Sao Paulo State) at 65% | E33: CA-GREET 3.0
B34: g. Filter Cake T&D, miles | C34: Same as Cane Transport +2 miles.
B35: h. Sugar Production
B36: gCO2e/wet ton of cane | D36: 3700 | E36: (Gopal et al, 2009).1
B37: i. Ethanol Production
B38: Total Plant Energy (Btu/gal)
B39: Residual oil | C39: 300 | E39: CA-GREET 3.0
B40: Chemical Use, g/tonne of cane
B41: Lime | C41: 880 | E41: CA-GREET 3.0
B42: j. Fuel Distribution
B43: Distribution by HDT to blending terminal, miles | C43: 40 | E43: CA-GREET 3.0
B44: Distribution by HDT to stations, miles | C44: 50 | E44: CA-GREET 3.0
B45: k. Fuel Properties
B46: Density of EtOH (LHV), grams/gal | C46: 2988 | E46: CA-GREET 3.0
B47: Sugarcane bagasse, Btu/ton | C47: 12381771.31 | E47: CA-GREET 3.0
B48: Sugarcane bagasse, Btu/metric tonne | C48: =C47*1000/(2000*0.4536) -> 13648336.98 | F48: =C48*100*0.5 -> 682416849.2 | G48: btu of energy avail (theoretical)
B49: Bagasse yield: wet tonne per wet tonne of sugarcane | C49: 0.28 | E49: CA-GREET 3.0
B50: Moisture in bagasse | C50: 0.5 | E50: CA-GREET 3.0 | F50: =F48*0.3 -> 204725054.8 | G50: combustion efficiency
B51: Steam generation efficiency | C51: 0.8 | E51: CA-GREET 3.0 | F51: =F50*0.8 -> 163780043.8 | G51: steam boiler efficiency
B52: Power Generation Efficiency | C52: 0.3 | E52: CA-GREET 3.0 | F52: =F51*0.99 -> 162142243.4 | G52: electrical generator efficiency
B53: l. Sugarcane bagasse, emissions, grams/mmBtu fuel burned | C53: Small Industrial Boiler | E53: CA-GREET 3.0 | F53: =F52/3412.96 -> 47507.80653 | G53: kWh
B54: m. Electrciity Mix emissions, grams/mmBtu Available at User Sites | C54: Brazil Electricity Mix | E54: CA-GREET 3.0 | F54: =F53/0.99 -> 47987.68336
B55: n. Electric Transmission and Distribution Loss | C55: 8.1% (Brazil) | E55: CA-GREET 3.0
B56: o. Global Warming Potentials of GHGs
B57: Carbon and Sulfur Ratios of Pollutants | D57: GWP relative to CO2
B58: Carbon ratio of VOC | C58: 0.85 | D58: =C58/C61 -> 3.116666667 | E58: CA-GREET 3.0
B59: Carbon ratio of CO | C59: =12/28 -> 0.4285714286 | D59: =C59/C61 -> 1.571428571 | E59: CA-GREET 3.0
B60: Carbon ratio of CH4 | C60: =12/16 -> 0.75
B61: Carbon ratio of CO2 | C61: =12/44 -> 0.2727272727
B62: Sulfur ratio of SO2 | C62: =32/64 -> 0.5
B66: 1. Gopal, A. and Kammen, D., 2009. “Molasses for ethanol: the economic and environmental impacts of a new pathway for the
B67: lifecycle greenhouse gas analysis of sugarcane ethanol,” (Table 1), Gopal, A., and Kammen, D., Environmental Research Letters, 4 (2009) 044005 (5pp).
B73: Ethanol fuel properties
B75: Density of EtOH, grams/gal | D75: 2988
D76: LHV | E76: Ton to MT | H76: Btu/dry m.t.
B77: Sugarcane bagasse, Btu/ton | D77: 12381771.31 | E77: 0.9072 | G77: Bagasse, Btu/metric ton | H77: =Fuel_Specs!D77/E77 -> 13648336.98
B78: Bagasse yield: wet tonne per wet tonne of sugarcane | C78: 0.28 | G78: steam generation efficiency | H78: 0.8
B79: Moisture in bagasse | C79: 0.5 | G79: Power Generation Efficiency | H79: 0.3
G80: Less Enthalpy of Steam Leaving the Steam Generator* (assume steam is saturated at exit of turbine/steam generator)
G82: Hv,sat = 1194.4 Btu/lb | H82: =1194.4*2.2046 -> 2633.17424 | I82: Btu/kg
G83: (150 psi, 358 F) | H83: =H82*1000 -> 2633174.24 | I83: Btu/tonne
